{"text_format":"1","workbook":"xlsx","n_sheets":1,"sheets":["ADA CONSTRUCTION JULY 2025 CAA"],"not_rendered":{"charts":0,"images":0,"macros":1,"external_links":1,"defined_names":0,"comments":1,"pivot_tables":0},"unopened":[],"bounds":{"document_bytes":16777216,"sheet_cells":100000,"rows_first":2000,"rows_last":500,"rows_between":2000,"halvings":0,"cell_chars":16384,"cell_head_chars":4096},"cells_cut":0,"cells_raw":0,"read":"whole","date_system":"1900"}

{"sheet":"ADA CONSTRUCTION JULY 2025 CAA","index":0,"n_rows":337,"n_cols":10,"rows_kept":337,"cut":false,"hidden":false,"merged":[]}
["DEPARTMENT OF TRANSPORTATION - CALTRANS"]
["DBE Commitment at Award (CAA) on Federally Funded Major Construction Contracts - October 1, 2024 - July 31, 2025"]
[]
["Total Award Amount Year-to-Date (YTD)",null,"Total DBE Commitment Amount YTD",null,null,"Total Prime Contracts Awarded YTD"]
[2094812821.1699994,null,{"$f":"SUM(C7:C18)","v":479679563.88999999},null,null,{"$f":"SUM(C313:C334,I313:I334,F313:F334)","v":123}]
["Groups",null,"Commitment Dollars YTD","Firms YTD","Contracts YTD","% of Contracts","% of DBE $","% of Total $"]
["Hispanic American Male",null,{"$f":"SUMIF(D30:D137,\"m\", C30:C137)","v":161921496.45999998},{"$f":"COUNTIF(D30:D137,\"M\")","v":81},{"$f":"SUMIF(D30:D137,\"M\",E30:E137)","v":307},{"$f":"E7/E20","v":0.32112970711297073},{"$f":"C7/C5","v":0.33756179885356086},{"$f":"C7/A5","v":7.7296403203014216E-2}]
["Hispanic American Female",null,{"$f":"SUMIF(D30:D137,\"F\", C30:C137)","v":58211841.079999991},{"$f":"COUNTIF(D30:D137,\"F\")","v":27},{"$f":"SUMIF(D30:D137,\"F\",E30:E137)","v":124},{"$f":"E8/E20","v":0.1297071129707113},{"$f":"C8/C5","v":0.12135568296453238},{"$f":"C8/A5","v":2.7788564444381905E-2}]
["African American Male",null,{"$f":"SUMIF(D157:D176,\"m\", C157:C176)","v":14071205.1},{"$f":"COUNTIF(D157:D176,\"M\")","v":15},{"$f":"SUMIF(D157:D176,\"M\",E157:E176)","v":37},{"$f":"E9/E20","v":3.8702928870292884E-2},{"$f":"C9/C5","v":2.9334593673093826E-2},{"$f":"C9/A5","v":6.7171658287545326E-3}]
["African American Female",null,{"$f":"SUMIF(D157:D176,\"F\", C157:C176)","v":7712982.2399999993},{"$f":"COUNTIF(D157:D176,\"F\")","v":4},{"$f":"SUMIF(D157:D176,\"F\",E157:E176)","v":14},{"$f":"E10/E20","v":1.4644351464435146E-2},{"$f":"C10/C5","v":1.6079447240676566E-2},{"$f":"C10/A5","v":3.6819433994547198E-3}]
["Asian Pacific Male",null,{"$f":"SUMIF(D202:D223,\"m\", C202:C223)","v":18462420.560000002},{"$f":"COUNTIF(D202:D223,\"M\")","v":14},{"$f":"SUMIF(D202:D223,\"M\",E202:E223)","v":51},{"$f":"E11/E20","v":5.3347280334728034E-2},{"$f":"C11/C5","v":3.8489070516737299E-2},{"$f":"C11/A5","v":8.8133986833670089E-3}]
["Asian Pacific Female",null,{"$f":"SUMIF(D202:D223,\"F\", C202:C223)","v":21173394.659999996},{"$f":"COUNTIF(D202:D223,\"F\")","v":7},{"$f":"SUMIF(D202:D223,\"F\",E202:E223)","v":46},{"$f":"E12/E20","v":4.8117154811715482E-2},{"$f":"C12/C5","v":4.4140706117001632E-2},{"$f":"C12/A5","v":1.0107535358779304E-2}]
["Subcontinent Asian Male",null,{"$f":"SUMIF(D179:D199,\"m\", C179:C199)","v":21568272.050000001},{"$f":"COUNTIF(D179:D199,\"M\")","v":16},{"$f":"SUMIF(D179:D199,\"M\",E179:E199)","v":52},{"$f":"E13/E20","v":5.4393305439330547E-2},{"$f":"C13/C5","v":4.496391690129628E-2},{"$f":"C13/A5","v":1.0296037828312338E-2}]
["Subcontinent Asian Female",null,{"$f":"SUMIF(D179:D199,\"F\", C179:C199)","v":0},{"$f":"COUNTIF(D179:D199,\"F\")","v":0},{"$f":"SUMIF(D179:D199,\"F\",E179:E199)","v":0},{"$f":"E14/E20","v":0},{"$f":"C14/C5","v":0},{"$f":"C14/A5","v":0}]
["Native American Male",null,{"$f":"SUMIF(D141:D154,\"m\", C141:C154)","v":15047840.689999999},{"$f":"COUNTIF(D141:D154,\"M\")","v":7},{"$f":"SUMIF(D141:D154,\"M\",E141:E154)","v":27},{"$f":"E15/E20","v":2.8242677824267783E-2},{"$f":"C15/C5","v":3.1370610346557866E-2},{"$f":"C15/A5","v":7.183381989038738E-3}]
["Native American Female",null,{"$f":"SUMIF(D141:D154,\"F\", C141:C154)","v":7876625.1500000004},{"$f":"COUNTIF(D141:D154,\"F\")","v":5},{"$f":"SUMIF(D141:D154,\"F\",E141:E154)","v":9},{"$f":"E16/E20","v":9.4142259414225944E-3},{"$f":"C16/C5","v":1.6420597713448278E-2},{"$f":"C16/A5","v":3.7600615531848476E-3}]
["Non Minority Women",null,{"$f":"SUMIF(D230:D308,\"F\", C230:C308)","v":153575405.90000004},{"$f":"COUNTIF(D230:D308,\"F\")","v":76},{"$f":"SUMIF(D230:D308,\"F\",E230:E308)","v":288},{"$f":"E17/E20","v":0.30125523012552302},{"$f":"C17/C5","v":0.32016249484253184},{"$f":"C17/A5","v":7.3312233125547119E-2}]
["Other Men",null,{"$f":"SUMIF(D226:D227,\"m\", C226:C227)","v":58080},{"$f":"COUNTIF(D226:D227,\"M\")","v":1},{"$f":"SUMIF(D226:D227,\"M\",E226:E227)","v":1},{"$f":"E18/E20","v":1.0460251046025104E-3},{"$f":"C18/C5","v":1.2108083056321093E-4},{"$f":"C18/A5","v":2.7725627518147914E-5}]
[null,null,null,null,null,{"$f":"E19/E20","v":0},{"$f":"C19/C5","v":0},{"$f":"C19/A5","v":0}]
["Total  ",null,{"$f":"SUM(C7:C18)","v":479679563.88999999},{"$f":"SUM(D7:D19)","v":253},{"$f":"SUM(E7:E19)","v":956}]
["Total Primes Contracts",null,{"$f":"SUM(C313:C334,I313:I334,F313:F334)","v":123}]
[]
["Yellow = DBEs",null,"Green = Trucking",{"$f":"COUNTIF(B30:B308,43)","v":47},{"$f":"SUMIF(B29:B308,\"43\",C29:C308)","v":58226845.969999999},{"$f":"E23/C5","v":0.12138696403449985}]
["Red = Prime Contractor",null,"Blue = Supplier",{"$f":"COUNTIF(B30:B308,33)","v":46},{"$f":"SUMIF(B29:B308,\"33\",C29:C308)","v":147315237.39000002},{"$f":"E24/C5","v":0.30711176476924568}]
["Red Italic = DBE firm as Prime",null,"White = Other",{"$f":"COUNTIF(B30:B308,-4142)","v":160},{"$f":"C5-(E23+E24)","v":274137480.52999997},{"$f":"E25/C5","v":0.57150127119625449}]
["BOLD = women"]
["* = Used both as Trucking & Supplier"]
[]
["Hispanic American","Column1","Dollars","M/F","# of Contracts","Contract #","# of Primes","Prime Name","Districts"]
["3P LANDSCAPING",-4142,13500,"M",1,{"$f":"FETCHCOMMENT(E30)","v":"07-355204"},1,{"$f":"FETCHCOMMENT(G30)","v":"GRANITE CONSTRUCTION COMPANY"},7]
["1 PASS SWEEPING, INC.",43,331500,"M",3,{"$f":"FETCHCOMMENT(E31)","v":"12-0K91U4\n07-348204\n12-0R3114"},3,{"$f":"FETCHCOMMENT(G31)","v":"GRANITE CONSTRUCTION COMPANY\nBOSCO CONSTRUCTORS, INC.\nBEADOR CONSTRUCTION COMPANY, INC."},"7,12"]
["A STAR SWEEPING",-4142,17200,"M",1,{"$f":"FETCHCOMMENT(E32)","v":"04-0Q2004"},1,{"$f":"FETCHCOMMENT(G32)","v":"GHILOTTI BROS., INC."},4]
["A&M CONSULTING ENGINEERS",-4142,226800,"M",12,{"$f":"FETCHCOMMENT(E33)","v":"08-1J6104\n04-0K6404\n04-2K7404\n03-3H8304\n04-2Q8004\n05-1H6504\n04-0K8004\n05-1J8604\n07-347904\n07-351704\n12-0R3114\n10-1H7004"},12,{"$f":"FETCHCOMMENT(G33)","v":"FBD VANGUARD CONSTRUCTION, INC.\nO.C. JONES & SONS INC\nBAY CITIES PAVING & GRADING\nPACIFIC INFRASTRUCTURE CONSTRUCTION, LLC\nGORDON N. BALL, INC.\nGRANITE CONSTRUCTION COMPANY\nGHILOTTI BROS INC\nPAPICH CONSTRUCTION COMPANY\nRASMUSSEN/VANGUARD\nC. A. RASMUSSEN, INC.\nBEADOR CONSTRUCTION COMPANY, INC.\nGEORGE REED, INC."},"3,4,5,7,8,10,12"]
["ABSL CONSTRUCTION",-4142,3860936.4699999997,"M",27,{"$f":"FETCHCOMMENT(E34)","v":"03-4H8704\n05-1J7804\n02-3H6904\n04-2Q6104\n07-333604\n10-0Q2104\n01-0F7104\n04-0P9204\n04-2K7404\n04-3J2604\n05-1H6504\n06-487404\n10-1L2804\n04-0K8004\n04-2Q5504\n07-346804\n09-374704\n10-1L8704\n06-0Y1704\n07-347904\n05-1N3404\n01-0K8904\n04-2K3604\n10-1H7004\n04-0AA624\n04-0Q1304\n04-2Q5204"},15,{"$f":"FETCHCOMMENT(G34)","v":"O.C. JONES & SONS INC\nCALPORTLAND CONSTRUCTION\nDIG IT CONSTRUCTION, INC.\nGRANITE ROCK COMPANY\nSULLY-MILLER CONTRACTING COMPANY\nBAY CITIES PAVING & GRADING, INC.\nGHILOTTI CONSTRUCTION COMPANY INC\nMYERS & SONS CONSTRUCGTION LLC\nGHILOTTI BROS INC\nTORO ENTERPRISES INC\nPAPICH CONSTRUCTION COMPANY\nRASMUSSEN/VANGUARD\nSOUZA ENGINEERING CONTRACTING, INC. DBA SOUZA CONSTRUCTION\nGRANITE CONSTRUCTION COMPANY\nGEORGE REED, INC."},"1,2,3,4,5,6,7,9,10"]
["ADVANTAGE DEMOLITION & GRADING, INC.",-4142,450000,"M",1,{"$f":"FETCHCOMMENT(E35)","v":"06-487404"},1,{"$f":"FETCHCOMMENT(G35)","v":"GRANITE CONSTRUCTION COMPANY"},6]
["ALCORN FENCE COMPANY",-4142,3181096.1500000004,"M",6,{"$f":"FETCHCOMMENT(E36)","v":"08-1J6104\n12-0R32U4\n05-1J8604\n07-348204\n07-346304\n07-355204"},6,{"$f":"FETCHCOMMENT(G36)","v":"FBD VANGUARD CONSTRUCTION, INC.\nR.J. NOBLE COMPANY\nPAPICH CONSTRUCTION COMPANY, INC.\nBOSCO CONSTRUCTORS, INC.\nCHUMO CONSTRUCTION, INC.\nGRANITE CONSTRUCTION COMPANY"},"5,7,8,12"]
["ALEXIS TRUCKING",43,116160,"F",1,{"$f":"FETCHCOMMENT(E37)","v":"08-1M0404"},1,{"$f":"FETCHCOMMENT(G37)","v":"INTERSTATE CIVIL CONSTRUCTION"},8]
["ATHENA TRUCKING",43,200000,"M",1,{"$f":"FETCHCOMMENT(E38)","v":"12-0K91U4"},1,{"$f":"FETCHCOMMENT(G38)","v":"GRANITE CONSTRUCTION COMPANY"},12]
["AUSTIN ENTERPRISE",-4142,1547578.08,"F",16,{"$f":"FETCHCOMMENT(E39)","v":"11-430384\n05-1J7804\n08-1J6104\n04-2K7404\n04-2Q8004\n05-1K4504\n05-1K6404\n06-487404\n12-0K91U4\n08-1K6904\n04-0K8004\n04-2Q5504\n07-347904\n07-351704\n08-1M7404\n10-1H7004"},11,{"$f":"FETCHCOMMENT(G39)","v":"HAZARD CONSTRUCTION ENGINEERING INC\nCALPORTLAND CONSTRUCTION\nFBD VANGUARD CONSTRUCTION, INC.\nBAY CITIES PAVING & GRADING, INC.\nGORDON N. BALL, INC.\nGRANITE CONSTRUCTION COMPANY\nGHILOTTI BROS INC\nRASMUSSEN/VANGUARD\nC. A. RASMUSSEN, INC.\nINTERSTATE CIVIL CONSTRUCTION\nGEORGE REED, INC."},"4,5,6,7,8,10,11,12"]
["BAY LINE CUTTING & CORING",-4142,513089.78,"M",4,{"$f":"FETCHCOMMENT(E40)","v":"05-1H6504\n04-0Q2004\n04-0Q1304\n04-2Q5204"},4,{"$f":"FETCHCOMMENT(G40)","v":"GRANITE CONSTRUCTION COMPANY\nGHILOTTI BROS., INC.\nO.C. JONES & SONS, INC.\nBAY CITIES PAVING & GRADING, INC."},"4,5"]
["BCK CONSULTING",-4142,9000,"F",1,{"$f":"FETCHCOMMENT(E41)","v":"01-0H6504"},1,{"$f":"FETCHCOMMENT(G41)","v":"WAHLUND CONSTRUCTION, INC."},1]
["BT TRUCKING, INC.",43,627744,"M",2,{"$f":"FETCHCOMMENT(E42)","v":"07-351704\n07-369704"},1,{"$f":"FETCHCOMMENT(G42)","v":"C. A. RASMUSSEN, INC."},7]
["C&N REINFORCING INC",-4142,597355.96,"M",4,{"$f":"FETCHCOMMENT(E43)","v":"04-2Q5504\n04-0P9304\n05-1G9504\n05-1G9504"},3,{"$f":"FETCHCOMMENT(G43)","v":"BAY CITIES PAVING & GRADING INC\nBUGLER CONSTRUCTION, INC.\nGORDON N BALL INC"},"4, 5"]
["CENTRAL COAST TRAFFIC SAFETY",33,547549.30000000005,"M",4,{"$f":"FETCHCOMMENT(E44)","v":"05-1Q03U4\n05-1J8604\n05-1N3404\n07-355204"},3,{"$f":"FETCHCOMMENT(G44)","v":"PAPICH CONSTRUCTION COMPANY, INC.\nSOUZA ENGINEERING CONTRACTING, INC. DBA SOUZA CONSTRUCTION\nGRANITE CONSTRUCTION COMPANY"},"5,7"]
["CENTRAL VALLEY REINFORCING",33,13350,"M",1,{"$f":"FETCHCOMMENT(E45)","v":"05-1N3404\n"},1,{"$f":"FETCHCOMMENT(G45)","v":"SOUZA ENGINEERING CONTRACTING, INC. DBA SOUZA CONSTRUCTION"},5]
["CHAVEZ TRUCKING",43,2408174.6399999997,"F",5,{"$f":"FETCHCOMMENT(E46)","v":"04-2Q6104\n04-2K7404\n04-3J2604\n04-2Q8004\n04-2Q5204"},4,{"$f":"FETCHCOMMENT(G46)","v":"GRANITE ROCK COMPANY\nBAY CITIES PAVING & GRADING, INC.\nO.C. JONES & SONS, INC.\nGORDON N. BALL, INC."},4]
["COASTLINE COMMERCIAL SWEEPERS INC",43,287910,"F",2,{"$f":"FETCHCOMMENT(E47)","v":"07-332304\n07-346804"},1,{"$f":"FETCHCOMMENT(G47)","v":"TORO ENTERPRISES INC"},7]
["COVARRUBIAS TRAFFIC CONTROL",-4142,1002000,"F",3,{"$f":"FETCHCOMMENT(E48)","v":"07-4X9704\n08-1K4004\n12-0R3114"},1,{"$f":"FETCHCOMMENT(G48)","v":"BEADOR CONSTRUCTION COMPANY, INC."},"7,8,12"]
["CUJO CONSTRUCTION INC",33,262582,"F",3,{"$f":"FETCHCOMMENT(E49)","v":"07-358404\n12-0K91U4\n12-0S8404"},2,{"$f":"FETCHCOMMENT(G49)","v":"YAKAR\nGRANITE CONSTRUCTION COMPANY\nBAKER ELECTRIC & RENEWABLES, LLC"},"7,12"]
["D.B. ELECTRIC INC",-4142,6998336,"M",3,{"$f":"FETCHCOMMENT(E50)","v":"08-1J3004\n12-0R3114\n08-1J5404"},3,{"$f":"FETCHCOMMENT(G50)","v":"SULLY-MILLER CONTRACTING COMPANY\nBEADOR CONSTRUCTION COMPANY, INC.\nFLATIRON WEST"},"8,12"]
["D.C. DRILLING INC",-4142,10770.94,"M",1,{"$f":"FETCHCOMMENT(E51)","v":"12-0S8404"},1,{"$f":"FETCHCOMMENT(G51)","v":"BAKER ELECTRIC & RENEWABLES, LLC"},12]
["DC TRAFFIC CONTROL",-4142,615060,"M",2,{"$f":"FETCHCOMMENT(E52)","v":"06-487404\n07-348204"},2,{"$f":"FETCHCOMMENT(G52)","v":"GRANITE CONSTRUCTION COMPANY\nBOSCO CONSTRUCTORS, INC."},"6,7"]
["DELTA BAY CONSULTANTS LLC",-4142,18400,"M",12,{"$f":"FETCHCOMMENT(E53)","v":"03-4H8704\n01-0F7104\n02-0K6404\n01-0H6404\n05-1H6504\n05-1K6404\n04-4G7804\n07-347904\n12-0K8704\n01-0K8904\n02-2J2204\n01-0H6504"},8,{"$f":"FETCHCOMMENT(G53)","v":"O.C. JONES & SONS INC\nGHILOTTI CONSTRUCTION COMPANY\nMCCUEN CONSTRUCTION\nRASMUSSEN/VANGUARD\nORTIZ ENTERPRISES INC\nGRANITE CONSTRUCTION COMPANY\nHIGHWAY SPECIALTY COMPANY INC\nWAHLUND CONSTRUCTION, INC."},"1,2,3,4,7,12"]
["DESIGN BUILD ENGINEERING",-4142,3264640.1,"M",7,{"$f":"FETCHCOMMENT(E54)","v":"07-348404\n07-356504\n12-0K91U4\n12-0R57U4\n07-370404\n07-347904\n07-369704"},6,{"$f":"FETCHCOMMENT(G54)","v":"ACCU CONSTRUCTION, INC.\nGRANITE CONSTRUCTION COMPANY\nSECURITY PAVING COMPANY, INC.\nGRIFFITH COMPANY\nRASMUSSEN/VANGUARD\nC. A. RASMUSSEN, INC."},"7,12"]
["DIRT DYNASTY, INC.",-4142,10200,"M",1,{"$f":"FETCHCOMMENT(E55)","v":"10-1H7004"},1,{"$f":"FETCHCOMMENT(G55)","v":"GEORGE REED, INC."},10]
["DON MAHAFFEY DRILLING",-4142,201426.4,"F",1,{"$f":"FETCHCOMMENT(E56)","v":"12-0K8704"},1,{"$f":"FETCHCOMMENT(G56)","v":"ORTIZ ENTERPRISES INC"},12]
["DRAGON MATERIAL TRANSPORT",33,739299.97000000009,"F",4,{"$f":"FETCHCOMMENT(E57)","v":"05-1H6504\n06-487404\n04-0K8004\n04-4G7804"},3,{"$f":"FETCHCOMMENT(G57)","v":"GRANITE CONSTRUCTION COMPANY\nGHILOTTI BROS INC\nO.C. JONES & SONS, INC."},"4,5,6"]
["DRS REBAR INC",-4142,1588757.07,"M",9,{"$f":"FETCHCOMMENT(E58)","v":"11-430384\n08-1J7204\n12-0R3154\n07-370404\n12-0R32U4\n07-347904\n12-0R3114\n12-OK8704\n08-1J5404"},8,{"$f":"FETCHCOMMENT(G58)","v":"HAZARD CONSTRUCTION ENGR, LLC\nSULLY-MILLER CONTRACTING COMPANY\nPOWELL CONSTRUCTORS, INC.\nGRIFFITH COMPANY\nR.J. NOBLE COMPANY\nRASMUSSEN/VANGUARD\nBEADOR CONSTRUCTION COMPANY, INC.\nORTIZ ENTERPRISES INC"},"7,8,11,12"]
["EIGHTEEN TRUCKING",43,465000,"F",1,{"$f":"FETCHCOMMENT(E59)","v":"04-2Q8004"},1,{"$f":"FETCHCOMMENT(G59)","v":"GORDON N. BALL, INC."},4]
["ENDEMIC ENVIRONMENTAL SERVICES",-4142,1259945,"M",11,{"$f":"FETCHCOMMENT(E60)","v":"03-0J01U4\n05-1J7804\n12-0R3134\n01-0F7104\n03-3H8304\n08-1J2704\n12-0R57U4\n08-1K6904\n06-0W79U4\n01-0H6504\n03-0J5604"},9,{"$f":"FETCHCOMMENT(G60)","v":"MERCER-FRASER COMPANY\nCALPORTLAND CONSTRUCTION\nPETERSON-CHASE GENERAL ENGINEERING CONSTRUCTION, INC.\nGHILOTTI CONSTRUCTION COMPANY\nPACIFIC INFRASTRUCTURE CONSTRUCTION, LLC\nSULLY-MILLER CONTRACTING COMPANY\nSECURITY PAVING COMPANY, INC.\nGRANITE CONSTRUCTION COMPANY\nWAHLUND CONSTRUCTION, INC."},"1,3,5,6,8,12"]
["FLASH TRAFFIC INC",-4142,84180,"F",2,{"$f":"FETCHCOMMENT(E61)","v":"07-332304\n07-355204"},2,{"$f":"FETCHCOMMENT(G61)","v":"TORO ENTERPRISES\nGRANITE CONSTRUCTION COMPANY"},7]
["FORTE ENGINEERING",-4142,3808431.4000000004,"F",2,{"$f":"FETCHCOMMENT(E62)","v":"07-347904\n07-346504"},2,{"$f":"FETCHCOMMENT(G62)","v":"RASMUSSEN/VANGUARD\nSECURITY PAVING COMPANY, INC."},7]
["FRONTLINE TRAFFIC CONTROL",-4142,276765,"M",2,{"$f":"FETCHCOMMENT(E63)","v":"07-358404\n07-348504"},1,{"$f":"FETCHCOMMENT(G63)","v":"YAKAR"},7]
["FULL TRAFFIC MAINTENANCE, INC.",-4142,740931,"M",3,{"$f":"FETCHCOMMENT(E64)","v":"07-351704\n12-0K8704\n12-0S8404"},2,{"$f":"FETCHCOMMENT(G64)","v":"C. A. RASMUSSEN, INC.\nORTIZ ENTERPRISES INC\nBAKER ELECTRIC & RENEWABLES, LLC"},"7,12"]
["G&F CONCRETE CUTTING",-4142,1593133.7,"F",4,{"$f":"FETCHCOMMENT(E65)","v":"12-0R57U4\n12-0R3114\n08-0G8504\n08-1J5404"},4,{"$f":"FETCHCOMMENT(G65)","v":"SECURITY PAVING COMPANY, INC.\nBEADOR CONSTRUCTION COMPANY, INC.\nGRANITE CONSTRUCTION COMPANY\nFLATIRON WEST INC"},"8,12"]
["G&G ELECTRIC",-4142,5379795,"M",1,{"$f":"FETCHCOMMENT(E66)","v":"12-0R3154"},1,{"$f":"FETCHCOMMENT(G66)","v":"POWELL CONSTRUCTORS, INC."},12]
["GALVAN REINFORCING COMPANY",-4142,303761.8,"M",2,{"$f":"FETCHCOMMENT(E67)","v":"07-350314\n07-346504"},2,{"$f":"FETCHCOMMENT(G67)","v":"CROSSTOWN ELECTRICAL & DATA, INC.\nSECURITY PAVING COMPANY, INC."},7]
["GEO-STRUCTURAL ENGINEERING",-4142,864254,"M",2,{"$f":"FETCHCOMMENT(E68)","v":"07-4X9704\n05-1G9504"},2,{"$f":"FETCHCOMMENT(G68)","v":"BEADOR CONSTRUCTION COMPANY, INC.\nGORDON N BALL"},"5,7"]
["GLJ CONSTRUCTION",-4142,1124000,"M",1,{"$f":"FETCHCOMMENT(E69)","v":"01-0H6504"},1,{"$f":"FETCHCOMMENT(G69)","v":"WAHLUND CONSTRUCTION, INC."},1]
["G.O. RODRIGUEZ TRUCKING",43,15120,"M",1,{"$f":"FETCHCOMMENT(E70)","v":"07-4X9704"},1,{"$f":"FETCHCOMMENT(G70)","v":"BEADOR CONSTRUCTION COMPANY, INC."},7]
["GOLDEN BAY FENCE PLUS IRON",33,1235267.74,"M",6,{"$f":"FETCHCOMMENT(E71)","v":"04-3J2604\n05-1H6504\n04-0K8004\n07-332304\n05-1G9504\n04-2Q5204"},6,{"$f":"FETCHCOMMENT(G71)","v":"O.C. JONES & SONS, INC.\nGRANITE CONSTRUCTION COMPANY\nGHILOTTI BROS INC\nTORO ENTERPRISES INC\nGORDON N BALL INC\nBAY CITIES PAVING & GRADING, INC."},"4,5,7"]
["GREENCOAST LANDSCAPE, INC.",-4142,2185596,"F",5,{"$f":"FETCHCOMMENT(E72)","v":"05-1K4504\n05-1J8604\n07-347904\n07-351704\n07-360704"},4,{"$f":"FETCHCOMMENT(G72)","v":"CALPORTLAND CONSTRUCTION\nPAPICH CONSTRUCTION COMPANY, INC.\nRASMUSSEN/VANGUARD\nC. A. RASMUSSEN, INC."},"5,7"]
["H&G CONSTRUCTION",-4142,985978.8,"M",2,{"$f":"FETCHCOMMENT(E73)","v":"04-2Q5504\n04-0Q1304"},2,{"$f":"FETCHCOMMENT(G73)","v":"BAY CITIES PAVING & GRADING INC\nO.C. JONES & SONS, INC."},4]
["HIGH LIGHT ELECTRIC, INC.",-4142,16849371.600000001,"M",7,{"$f":"FETCHCOMMENT(E74)","v":"12-0R3134\n11-056404\n08-1K4004\n12-0K91U4\n09-374704\n09-379104\n06-0W79U4"},7,{"$f":"FETCHCOMMENT(G74)","v":"PETERSON-CHASE GENERAL ENGINEERING CONSTRUCTION, INC.\nHAZARD CONSTRUCTION COMPANY\nBEADOR CONSTRUCTION COMPANY, INC.\nGRANITE CONSTRUCTION COMPANY\nPAPICH CONSTRUCTION COMPANY INC\nROAD AND HIGHWAY BUILDERS LLC\nSECURITY PAVING COMPANY, INC."},"6,8,9,11,12"]
["IN-LINE FENCE & RAILING",-4142,474725,"M",1,{"$f":"FETCHCOMMENT(E75)","v":"12-0K91U4"},1,{"$f":"FETCHCOMMENT(G75)","v":"GRANITE CONSTRUCTION COMPANY"},12]
["INLAND GARDENS AND TROPICS",-4142,118287.73,"F",1,{"$f":"FETCHCOMMENT(E76)","v":"08-1K4004"},1,{"$f":"FETCHCOMMENT(G76)","v":"BEADOR CONSTRUCTION COMPANY, INC."},8]
["J. PEREZ TRANSPORT",43,1174250,"M",1,{"$f":"FETCHCOMMENT(E77)","v":"09-379104"},1,{"$f":"FETCHCOMMENT(G77)","v":"ROAD AND HIGHWAY BUILDERS"},9]
["JEFFERSON STATE HIGHWAYS INC",-4142,5285968.330000001,"M",22,{"$f":"FETCHCOMMENT(E78)","v":"03-4H8704\n03-0J01U4\n02-3H6904\n01-0F7104\n01-0J8904\n02-0K6404\n02-4H03U4\n02-1J75U4\n02-4H0104\n02-4H0704\n03-3H8304\n04-2Q8004\n04-2Q5504\n04-2Q6504\n07-347904\n07-369704\n09-366804\n01-0K8904\n04-2K3604\n05-1G9504\n03-0J5604\n04-2Q5204"},14,{"$f":"FETCHCOMMENT(G78)","v":"O.C. JONES & SONS INC\nMERCER-FRASER COMPANY\nJEFFERSON STATE HIGHWAYS, INC.\nGHILOTTI CONSTRUCTION COMPANY INC\nMCCUEN CONSTRUCTION INC\nHAT CREEK CONSTRUCTION MATERIALS\nPACIFIC INFRASTRUCTURE CONSTRUCTION, LLC\nGORDON N. BALL, INC.\nBAY CITIES PAVING & GRADING INC\nRASMUSSEN/VANGUARD\nC. A. RASMUSSEN, INC.\nPAPICH CONSTRUCTION COMPANY\nGRANITE CONSTRUCTION COMPANY\nGHILOTTI BROS., INC."},"1,2,3,4,7,9"]
["JFL ELECTRIC",-4142,26008815,"M",6,{"$f":"FETCHCOMMENT(E79)","v":"08-1K6904\n07-332304\n07-346804\n12-0R32U4\n07-348204\n07-350324"},5,{"$f":"FETCHCOMMENT(G79)","v":"GRANITE CONSTRUCTION COMPANY\nTORO ENTERPRISES INC\nR.J. NOBLE COMPANY\nBOSCO CONSTRUCTORS, INC.\nJFL ELECTRIC, INC."},"7,8,12"]
["JUNIOR SWEEPING COMPANY LLC",43,117720,"M",3,{"$f":"FETCHCOMMENT(E80)","v":"01-0F7104\n05-1K6404\n10-1H7004"},3,{"$f":"FETCHCOMMENT(G80)","v":"GHILOTTI CONSTRUCTION COMPANY, INC.\nGRANITE CONSTRUCTION COMPANY\nGEORGE REED, INC."},"1,5,10"]
["LA FIRMA INC",-4142,3750,"M",1,{"$f":"FETCHCOMMENT(E81)","v":"07-370404"},1,{"$f":"FETCHCOMMENT(G81)","v":"GRIFFITH COMPANY"},7]
["LA STEEL SERVICES, INC.",-4142,658838.19999999995,"M",2,{"$f":"FETCHCOMMENT(E82)","v":"08-1K6904\n08-0G8504"},1,{"$f":"FETCHCOMMENT(G82)","v":"GRANITE CONSTRUCTION COMPANY\n"},8]
["LASER BRIDGE INDUSTRIAL",33,60070.51,"M",1,{"$f":"FETCHCOMMENT(E83)","v":"12-0K8704"},1,{"$f":"FETCHCOMMENT(G83)","v":"ORTIZ ENTERPRISES INC"},12]
["LIZ TRANSPORT",43,313556,"F",1,{"$f":"FETCHCOMMENT(E84)","v":"07-348204"},1,{"$f":"FETCHCOMMENT(G84)","v":"BOSCO CONSTRUCTORS, INC."},7]
["LOGISTICAL ENTERPRISES",33,1789650.96,"F",9,{"$f":"FETCHCOMMENT(E85)","v":"03-4H8704\n03-0J01U4\n04-0K1004\n12-0S1404\n04-3J2604\n04-0K8004\n07-348204\n10-1H7004\n04-1W0904"},8,{"$f":"FETCHCOMMENT(G85)","v":"O.C. JONES & SONS INC\n MERCER-FRASER COMPANY\nMIKE BROWN ELECTRIC CO.\nCHUMO CONSTRUCTION INC\nGHILOTTI BROS INC\nBOSCO CONSTRUCTORS, INC.\nGEORGE REED, INC.\nCROSSTOWN ELECTRICAL & DATA, INC."},"3,4,10,12"]
["LONE STAR LANDSCAPE",-4142,1927725,"M",10,{"$f":"FETCHCOMMENT(E86)","v":"04-0P9204\n04-0P7604\n05-1H6504\n05-1K6404\n04-0K8004\n04-3Q8504\n04-4G7804\n04-0Q2004\n05-1G9504\n04-1W0904"},8,{"$f":"FETCHCOMMENT(G86)","v":"MYERS & SONS CONSTRUCTION, LLC.\nST. FRANCIS ELECTRIC, LLC.\nGRANITE CONSTRUCTION COMPANY\nGHILOTTI BROS INC\nTENNYSON ELECTRIC INC\nO.C. JONES & SONS, INC.\nGORDON N BALL INC\nCROSSTOWN ELECTRICAL & DATA, INC."},"4,5"]
["LOS MORALES TRUCKING, INC.",43,493140,"M",2,{"$f":"FETCHCOMMENT(E87)","v":"08-1K4004\n08-1M7404"},2,{"$f":"FETCHCOMMENT(G87)","v":"BEADOR CONSTRUCTION COMPANY, INC.\nINTERSTATE CIVIL CONSTRUCTION"},8]
["M&S ENVIRONMENTAL",33,2682456.4500000002,"M",4,{"$f":"FETCHCOMMENT(E88)","v":"02-3H6904\n01-0J8904\n02-0K6404\n01-0J2104\n01-0H6504"},4,{"$f":"FETCHCOMMENT(G88)","v":"DIG IT CONSTRUCTION, INC.\nMERCER FRASER COMPANY\nMCCUEN CONSTRUCTION\nWAHLUND CONSTRUCTION, INC."},"1,2"]
["MADERA CONCRETE COMPANY",-4142,333786,"M",2,{"$f":"FETCHCOMMENT(E89)","v":"06-487404\n10-1L8704"},1,{"$f":"FETCHCOMMENT(G89)","v":"GRANITE CONSTRUCTION COMPANY"},"6,10"]
["MANERI TRAFFIC CONTROL",33,36596996.219999991,"F",27,{"$f":"FETCHCOMMENT(E90)","v":"11-430384\n12-0S1404\n07-333604\n08-1J6104\n07-358404\n08-1J3004\n08-1J2704\n08-1J7204\n08-1K4004\n12-0R3154\n12-0R57U4\n12-0S7004\n08-1K6904\n07-370404\n12-0R32U4\n07-347904\n07-350314\n07-350334\n07-351704\n08-1J4504\n07-346304\n07-369704\n08-0G8504\n12-0K8704\n12-0U9104\n07-346504"},17,{"$f":"FETCHCOMMENT(G90)","v":"HAZARD CONSTRUCTION ENGR, LLC\nCHUMO CONSTRUCTION INC\nSULLY-MILLER CONTRACTING COMPANY\nFBD VANGUARD CONSTRUCTION, INC.\nYAKAR\nBEADOR CONSTRUCTION COMPANY, INC.\nPOWELL CONSTRUCTORS, INC.\nSECURITY PAVING COMPANY, INC.\nAUTOBAHN CONSTRUCTION, INC.\nGRANITE CONSTRUCTION COMPANY\nGRIFFITH COMPANY \nR.J. NOBLE COMPANY\nRASMUSSEN/VANGUARD\nC. A. RASMUSSEN, INC.\nCROSSTOWN ELECTRICAL & DATA, INC.\nALL AMERICAN ASPHALT\nORTIZ ENTERPRISES INC"},"7,8,11,12"]
["MAVERICK SWEEPING",43,275744,"F",3,{"$f":"FETCHCOMMENT(E91)","v":"08-1K4004\n07-354704\n12-0K8704"},3,{"$f":"FETCHCOMMENT(G91)","v":"BEADOR CONSTRUCTION COMPANY, INC.\nCERTIFIED COATING COMPANY\nORTIZ ENTERPRISES INC"},"7,8,12"]
["MESA TRAFFIC SERVICES",-4142,123250,"M",1,{"$f":"FETCHCOMMENT(E92)","v":"07-351704"},1,{"$f":"FETCHCOMMENT(G92)","v":"C. A. RASMUSSEN, INC."},7]
["MONZON & SON ENTERPRISES INC",43,15278262.65,"M",13,{"$f":"FETCHCOMMENT(E93)","v":"11-430384\n12-0S1404\n07-333604\n08-1J6104\n12-0R3134\n08-1J2704\n08-1J7204\n12-0R57U4\n07-347904\n12-0R3114\n12-0K8704\n07-346304\n07-346504"},9,{"$f":"FETCHCOMMENT(G93)","v":"HAZARD CONSTRUCTION ENGR, LLC\nCHUMO CONSTRUCTION INC\nSULLY-MILLER CONTRACTING COMPANY\nFBD VANGUARD CONSTRUCTION, INC.\nPETERSON-CHASE GENERAL ENGINEERING CONSTRUCTION, INC.\nSECURITY PAVING COMPANY, INC.\nRASMUSSEN/VANGUARD\nBEADOR CONSTRUCTION COMPANY, INC.\nORTIZ ENTERPRISES INC"},"7,8,11,12"]
["MORAN CONSULTING",-4142,94640,"M",1,{"$f":"FETCHCOMMENT(E94)","v":"07-333604"},1,{"$f":"FETCHCOMMENT(G94)","v":"SULLY-MILLER CONTRACTING COMPANY"},7]
["NOLD'S EQUIPMENT",33,362808,"F",2,{"$f":"FETCHCOMMENT(E95)","v":"07-333604\n07-358404"},2,{"$f":"FETCHCOMMENT(G95)","v":"SULLY-MILLER CONTRACTING COMPANY\nYAKAR"},7]
["PRECISION GRADE, INC.",-4142,3996411,"M",1,{"$f":"FETCHCOMMENT(E96)","v":"05-1H6914"},1,{"$f":"FETCHCOMMENT(G96)","v":"PRECISION GRADE, INC."},5]
["POLO ENGINEERING, INC.",-4142,673013,"F",1,{"$f":"FETCHCOMMENT(E97)","v":"07-4P8504"},1,{"$f":"FETCHCOMMENT(G97)","v":"POLO ENGINEERING, INC."},7]
["PRE-CON PRODUCTS, LTD.",-4142,658576.65999999992,"M",5,{"$f":"FETCHCOMMENT(E98)","v":"08-1K4004\n07-346804\n07-370404\n12-0R3114\n07-369704"},4,{"$f":"FETCHCOMMENT(G98)","v":"BEADOR CONSTRUCTION COMPANY, INC.\nTORO ENTERPRISES INC\nGRIFFITH COMPANY\nC. A. RASMUSSEN, INC."},"7,8,12"]
["PREMIER SIGN SERVICE INC",-4142,11068313.039999999,"M",5,{"$f":"FETCHCOMMENT(E99)","v":"12-0R32U4\n07-347904\n07-348204\n12-0K8704\n08-1J5404"},5,{"$f":"FETCHCOMMENT(G99)","v":"R.J. NOBLE COMPANY\nRASMUSSEN/VANGUARD\nBOSCO CONSTRUCTORS, INC.\nORTIZ ENTERPRISES INC\nFLATIRON WEST, INC."},"8,12"]
["PREMIER VALLEY TRANSPORT INC",43,2214250,"M",4,{"$f":"FETCHCOMMENT(E100)","v":"05-1Q03U4\n09-374704\n05-1J8604\n06-0Y1704"},1,{"$f":"FETCHCOMMENT(G100)","v":"PAPICH CONSTRUCTION COMPANY, INC."},"5,6,9"]
["PTM GENERAL ENGINEERING",-4142,1264843,"F",3,{"$f":"FETCHCOMMENT(E101)","v":"07-4P8504\n05-1K5104\n12-0U9204"},2,{"$f":"FETCHCOMMENT(G101)","v":"PTM GENERAL ENGINEERING SERVICES, INC.\nCENTRAL COAST FINANCIAL GROUP, INC. DBA CCFG CONSTRUCTION"},"5,7,12"]
["QA CONSTRUCTORS",-4142,1585280,"M",3,{"$f":"FETCHCOMMENT(E102)","v":"04-0P9204\n04-0P7604\n04-0P9304"},3,{"$f":"FETCHCOMMENT(G102)","v":"MYERS & SONS CONSTRUCTION, LLC.\nST. FRANCIS ELECTRIC, LLC.\nBUGLER CONSTRUCTION, INC."},4]
["QUALITY TRAFFIC CONTROL",-4142,1221070.5,"M",5,{"$f":"FETCHCOMMENT(E103)","v":"11-056404\n12-0K91U4\n07-354704\n12-0R3114\n11-430194"},4,{"$f":"FETCHCOMMENT(G103)","v":"HAZARD CONSTRUCTION ENGR, LLC\nGRANITE CONSTRUCTION COMPANY\nCERTIFIED COATINGS COMPANY\nBEADOR CONSTRUCTION COMPANY, INC."},"7,11,12"]
["QUIMU CONTRACTING, INC.",-4142,386080,"M",1,{"$f":"FETCHCOMMENT(E104)","v":"03-3J9104"},1,{"$f":"FETCHCOMMENT(G104)","v":"QUIMU CONTRACTING, INC."},3]
["RAC CONSTRUCTION",-4142,119167.5,"M",1,{"$f":"FETCHCOMMENT(E105)","v":"11-430194\n"},1,{"$f":"FETCHCOMMENT(G105)","v":"HAZARD CONSTRUCTION COMPANY DBA HAZARD CONSRUCTION ENGR LLC"},11]
["RANGEL BROTHERS TRUCKING",43,1541400,"M",1,{"$f":"FETCHCOMMENT(E106)","v":"07-370404"},1,{"$f":"FETCHCOMMENT(G106)","v":"GRIFFITH COMPANY"},7]
["RE CHAFFEE CONSTRUCTION, INC.",-4142,450229,"M",2,{"$f":"FETCHCOMMENT(E107)","v":"08-1M7404\n08-1M0404"},1,{"$f":"FETCHCOMMENT(G107)","v":"INTERSTATE CIVIL CONSTRUCTION"},8]
["REYCON CONSTRUCTION",-4142,1314820,"M",1,{"$f":"FETCHCOMMENT(E108)","v":"08-0G8504"},1,{"$f":"FETCHCOMMENT(G108)","v":"GRANITE CONSTRUCTION COMPANY"},8]
["REYNAGA TRANSPORTATION",43,2042160,"M",3,{"$f":"FETCHCOMMENT(E109)","v":"07-333604\n08-1J6104\n07-347904"},3,{"$f":"FETCHCOMMENT(G109)","v":"SULLY-MILLER CONTRACTING COMPANY\nFBD VANGUARD CONSTRUCTION, INC.\nRASMUSSEN/VANGUARD"},"7,8"]
["R.M.C. TRUCKING",43,114500,"M",1,{"$f":"FETCHCOMMENT(E110)","v":"08-1J7204"},1,{"$f":"FETCHCOMMENT(G110)","v":"SULLY-MILLER CONTRACTING COMPANY"},8]
["ROBINSON SWEEPING INC",43,385200,"F",4,{"$f":"FETCHCOMMENT(E111)","v":"03-0J01U4\n01-0J8904\n01-0J2104\n03-0J5604"},1,{"$f":"FETCHCOMMENT(G111)","v":"MERCER-FRASER COMPANY"},"1,3"]
["RUPERT CONSTRUCTION SUPPLY",33,1900693.3499999999,"M",14,{"$f":"FETCHCOMMENT(E112)","v":"11-430384\n05-1J7804\n08-1J6104\n04-3J2604\n01-0H6404\n02-1J75U4\n04-2Q8004\n06-487404\n08-1K4004\n12-0K91U4\n04-0K8004\n09-374704\n07-347904\n05-1G9504\n07-346104"},13,{"$f":"FETCHCOMMENT(G112)","v":"HAZARD CONSTRUCTION ENGR, LLC\nCALPORTLAND CONSTRUCTION\nFBD VANGUARD CONSTRUCTION, INC.\nO.C. JONES AND SONS\nWYLATTI RESOURCE MANAGEMENT, INC.\nHAT CREEK CONSTRUCTION & MATERIALS, INC.\nGORDON N. BALL, INC.\nGRANITE CONSTRUCTION COMPANY\nBEADOR CONSTRUCTION COMPANY, INC.\nGHILOTTI BROS INC\nPAPICH CONSTRUCTION COMPANY INC\nRASMUSSEN/VANGUARD\nPOWELL CONSTRUCTORS, INC."},"1,2,4,5,6,7,8,9,11,12"]
["S&S TRUCKING",43,117576,"M",2,{"$f":"FETCHCOMMENT(E113)","v":"04-3J2604\n04-2Q5504"},2,{"$f":"FETCHCOMMENT(G113)","v":"O.C. JONES & SONS, INC.\nBAY CITIES PAVING & GRADING INC"},4]
["SAFEWAY SIGN COMPANY",-4142,1997446.22,"M",10,{"$f":"FETCHCOMMENT(E114)","v":"11-430384\n08-1K4004\n12-0R3154\n07-347904\n08-1J4504\n12-0R3114\n07-346304\n11-430194\n02-2J2204\n07-346504"},6,{"$f":"FETCHCOMMENT(G114)","v":"HAZARD CONSTRUCTION ENGR, LLC\nBEADOR CONSTRUCTION COMPANY, INC.\nPOWELL CONSTRUCTORS, INC.\nCHUMO CONSTRUCTION, INC.\nHIGHWAY SPECIALTY COMPANY, INC.\nSECURITY PAVING COMPANY, INC."},"2,7,11"]
["SAWMAN CONCRETE CUTTING, INC.",-4142,688867.2,"M",1,{"$f":"FETCHCOMMENT(E115)","v":"07-347904"},1,{"$f":"FETCHCOMMENT(G115)","v":"RASMUSSEN/VANGUARD"},7]
["SHARPLINE SOLUTIONS, INC.",-4142,30415.09,"M",1,{"$f":"FETCHCOMMENT(E116)","v":"07-351704"},1,{"$f":"FETCHCOMMENT(G116)","v":"C. A. RASMUSSEN, INC."},7]
["SHIELD RENTALS & SALES LLC",-4142,219300,"M",2,{"$f":"FETCHCOMMENT(E117)","v":"04-2Q8004\n04-0Q2004"},2,{"$f":"FETCHCOMMENT(G117)","v":"GORDON N. BALL, INC.\nGHILOTTI BROS., INC."},4]
["SOCAL WELDING",-4142,337930.25,"M",1,{"$f":"FETCHCOMMENT(E118)","v":"04-2Q8004"},1,{"$f":"FETCHCOMMENT(G118)","v":"GORDON N. BALL, INC."},4]
["SWPPQUEEN",-4142,14425,"F",1,{"$f":"FETCHCOMMENT(E119)","v":"04-0P7604"},1,{"$f":"FETCHCOMMENT(G119)","v":"ST. FRANCIS ELECTRIC, LLC."},4]
["TERRA WEST ",-4142,6325,"M",3,{"$f":"FETCHCOMMENT(E120)","v":"11-430384\n11-056404\n11-430194"},1,{"$f":"FETCHCOMMENT(G120)","v":"HAZARD CONSTRUCTION ENGR, LLC"},11]
["TESORO CONSTRACTORS",-4142,1149665,"M",2,{"$f":"FETCHCOMMENT(E121)","v":"11-430194\n07-348504\n"},2,{"$f":"FETCHCOMMENT(G121)","v":"HAZARD CONSTRUCTION COMPANY DBA HAZARD CONSRUCTION ENGR LLC\nYAKAR"},"7,11"]
["TOTAL BARRICADE SERVICE INC",-4142,647240,"M",1,{"$f":"FETCHCOMMENT(E122)","v":"07-346804"},1,{"$f":"FETCHCOMMENT(G122)","v":"TORO ENTERPRISES INC"},7]
["TOTAL SITE SUPPLY COMPANY",33,35526.339999999997,"M",1,{"$f":"FETCHCOMMENT(E123)","v":"08-1K4004"},1,{"$f":"FETCHCOMMENT(G123)","v":"BEADOR CONSTRUCTION COMPANY, INC."},8]
["TR DIGITAL, INC.",-4142,100000,"M",1,{"$f":"FETCHCOMMENT(E124)","v":"04-2Q8004"},1,{"$f":"FETCHCOMMENT(G124)","v":"GORDON N. BALL, INC."},4]
["TRANSPACIFIC STEEL LLC",-4142,5694292.8200000003,"M",6,{"$f":"FETCHCOMMENT(E125)","v":"05-1J7804\n04-2Q8004\n05-1K4504\n06-487404\n05-1J8604\n06-0W79U4"},6,{"$f":"FETCHCOMMENT(G125)","v":"CALPORTLAND CONSTRUCTION\nGORDON N. BALL, INC.\nGRANITE CONSTRUCTION COMPANY\nPAPICH CONSTRUCTION COMPANY, INC.\nFLATIRON WEST, INC.\nSECURITY PAVING COMPANY, INC."},"5,6"]
["TREESMITH ENTERPRISES",-4142,858000,"F",1,{"$f":"FETCHCOMMENT(E126)","v":"08-1K6904"},1,{"$f":"FETCHCOMMENT(G126)","v":"GRANITE CONSTRUCTION COMPANY"},8]
["TULLY INC",-4142,608844.98,"F",20,{"$f":"FETCHCOMMENT(E127)","v":"03-4H8704\n04-1Q2004\n10-0Q2104\n01-0F7104\n04-0K6404\n04-3J2604\n01-0H6404\n03-3H8304\n04-2Q8004\n06-487404\n10-1L2804\n04-4G7804\n04-0Q2004\n01-0K8904\n04-2K3604\n10-1H7004\n05-1G9504\n02-2J2204\n03-0J5604\n01-0H6504"},13,{"$f":"FETCHCOMMENT(G127)","v":"O.C. JONES & SONS INC\nCOLUMBIA ELECTRIC, INC.\nBAY CITIES PAVING & GRADING, INC.\nGHILOTTI CONSTRUCTION COMPANY, INC.\nWYLATTI RESOURCE MANAGEMENT, INC.\nPACIFIC INFRASTRUCTURE CONSTRUCTION, LLC\nGORDON N. BALL, INC.\nGRANITE CONSTRUCTION COMPANY\nGHILOTTI BROS., INC.\nGEORGE REED, INC.\nHIGHWAY SPECIALTY COMPANY, INC.\nWAHLUND CONSTRUCTION, INC.\nMERCER-FRASER COMPANY"},"1,2,3,4,5,6,10"]
["UNITED SWEEPING",43,45000,"M",1,{"$f":"FETCHCOMMENT(E128)","v":"10-1K8404"},1,{"$f":"FETCHCOMMENT(G128)","v":"MOUNTAIN CASCADE INC"},10]
["UNIVERSAL CONCRETE CONSTRUCTION",-4142,1129682,"M",1,{"$f":"FETCHCOMMENT(E129)","v":"08-0G8504"},1,{"$f":"FETCHCOMMENT(G129)","v":"GRANITE CONSTRUCTION COMPANY"},8]
["V3 CONSTRCTION, INC.",-4142,3996938.2,"M",1,{"$f":"FETCHCOMMENT(E130)","v":"08-1K6904"},1,{"$f":"FETCHCOMMENT(G130)","v":"GRANITE CONSTRUCTION COMPANY"},8]
["VALDIVIA TRUCKING",43,335050,"M",1,{"$f":"FETCHCOMMENT(E131)","v":"04-4G7804"},1,{"$f":"FETCHCOMMENT(G131)","v":"O.C. JONES & SONS, INC."},4]
["VELARDE CONSTRUCTION",-4142,957173.96,"M",1,{"$f":"FETCHCOMMENT(E132)","v":"08-1J5404"},1,{"$f":"FETCHCOMMENT(G132)","v":"FLATIRON WEST, INC."},8]
["WCW INC.",-4142,2552139.4500000002,"M",2,{"$f":"FETCHCOMMENT(E133)","v":"04-2Q8004\n07-369704"},2,{"$f":"FETCHCOMMENT(G133)","v":"GORDON N. BALL, INC.\nC. A. RASMUSSEN, INC."},"4,7"]
["WEST PACIFIC CONCRETE",-4142,102378.03,"M",1,{"$f":"FETCHCOMMENT(E134)","v":"08-1J2704"},1,{"$f":"FETCHCOMMENT(G134)","v":"SULLY-MILLER CONTRACTING COMPANY"},8]
["WESTERN TRAFFIC SUPPLY, INC.",33,5356227,"M",9,{"$f":"FETCHCOMMENT(E135)","v":"04-2Q6104\n04-2K7404\n04-0P7604\n04-2Q5504\n04-3Q8504\n04-2Q6504\n04-1W0904\n04-0AA624\n04-2Q5204"},5,{"$f":"FETCHCOMMENT(G135)","v":"GRANITE ROCK COMPANY\nBAY CITIES PAVING & GRADING INC\nST. FRANCIS ELECTRIC, LLC.\nTENNYSON ELECTRIC LLC\nCROSSTOWN ELECTRICAL & DATA, INC."},4]
["YMD MATERIAL BROKER",43,240000,"F",1,{"$f":"FETCHCOMMENT(E136)","v":"08-1J7204"},1,{"$f":"FETCHCOMMENT(G136)","v":"SULLY-MILLER CONTRACTING COMPANY"},8]
["ZABEL ENTERPRISES",43,970500,"M",2,{"$f":"FETCHCOMMENT(E137)","v":"01-0J8904\n01-0J2104"},1,{"$f":"FETCHCOMMENT(G137)","v":"MERCER-FRASER COMPANY"},4]
[null,null,null,null,null,{"$f":"FETCHCOMMENT(E138)","v":""},null,{"$f":"FETCHCOMMENT(G138)","v":""}]
[]
["Native American","Column1","Dollars","M/F","# of Contracts","Contract #","# of Primes","Prime Name","Districts"]
["CREST EQUIPMENT",-4142,534100,"F",2,{"$f":"FETCHCOMMENT(E141)","v":"11-056404\n11-430194"},2,{"$f":"FETCHCOMMENT(G141)","v":"O.C. JONES & SONS, INC.\nHAZARD CONSTRUCTION COMPANY DBA HAZARD CONSRUCTION ENGR LLC"},11]
["DISABLED AMERICAN VETERAN ENTERPRISES TRUCKING & SWEEPING",33,1049632,"M",1,{"$f":"FETCHCOMMENT(E142)","v":"06-0W79U4"},1,{"$f":"FETCHCOMMENT(G142)","v":"SECURITY PAVING COMPANY, INC."},6]
["FORCE TRAFFIC CONTROL",-4142,150000,"M",1,{"$f":"FETCHCOMMENT(E143)","v":"10-1H7004"},1,{"$f":"FETCHCOMMENT(G143)","v":"GEORGE REED, INC."},10]
["GLOBAL TRANSLOADING",-4142,165857,"F",1,{"$f":"FETCHCOMMENT(E144)","v":"07-346104"},1,{"$f":"FETCHCOMMENT(G144)","v":"POWELL CONSTRUCTORS, INC."},7]
["G R SUNDBERG, INC.",-4142,7546784.25,"M",6,{"$f":"FETCHCOMMENT(E145)","v":"01-0K4104\n01-0J8904\n01-0K9404\n06-487404\n04-0K8004\n04-2K3604"},4,{"$f":"FETCHCOMMENT(G145)","v":"G R SUNDBERG, INC.\nMERCER-FRASER COMPANY\nWYLATTI RESOURCE MANAGEMENT, INC.\nGHILOTTI BROS INC"},"1,4"]
["POWELL CONSTRUCTORS, INC.",-4142,520000,"M",1,{"$f":"FETCHCOMMENT(E146)","v":"01-0H6504"},1,{"$f":"FETCHCOMMENT(G146)","v":"WAHLUND CONSTRUCTION, INC."},1]
["KRC SAFETY CO INC",33,2481589,"M",8,{"$f":"FETCHCOMMENT(E147)","v":"05-1J7804\n06-0X2504\n05-1Q03U4\n05-1K4504\n05-1K5104\n05-1K6404\n06-487404\n06-0Y1704"},4,{"$f":"FETCHCOMMENT(G147)","v":"CALPORTLAND CONSTRUCTION\nPAPICH CONSTRUCTION COMPANY, INC.\nGRANITE CONSTRUCTION COMPANY\nCENTRAL COAST FINANCIAL GROUP, INC. DBA CCFG CONSTRUCTION"},"5,6"]
["SAM'S EQUIPMENT & SUPPLIES",33,236621.79,"M",3,{"$f":"FETCHCOMMENT(E148)","v":"09-387704\n10-1L8704\n06-0Y1704"},3,{"$f":"FETCHCOMMENT(G148)","v":"SB GENERAL ENGINEERING INC\nGRANITE CONSTRUCTION COMPANY\nPAPICH CONSTRUCTION COMPANY, INC."},"6,9,10"]
["SPIRIT ROAD OILS",33,579728,"F",3,{"$f":"FETCHCOMMENT(E149)","v":"04-2Q6104\n04-0K6404\n04-0AA624"},2,{"$f":"FETCHCOMMENT(G149)","v":"GRANITE ROCK COMPANY\nHAZARD CONSTRUCTION ENGR, LLC"},4]
["SPURS TRUCKING AND EQUIPMENT, INC.",43,52200,"F",1,{"$f":"FETCHCOMMENT(E150)","v":"02-4H0604"},1,{"$f":"FETCHCOMMENT(G150)","v":"HAT CREEK CONSTRUCTION & MATERIALS, INC."},2]
["S.T. RHOADES CONSTRUCTION",-4142,3063213.65,"M",7,{"$f":"FETCHCOMMENT(E151)","v":"02-4H0604\n02-4H03U4\n03-2J5904\n02-4H0104\n02-4H0704\n03-1H1404\n01-0J2104"},4,{"$f":"FETCHCOMMENT(G151)","v":"HAT CREEK CONSTRUCTION & MATERIALS, INC.\nSTUDEBAKER ELECTRIC, INC.\nMARTIN BROTHERS CONSTRUCTION\nMERCER-FRASER COMPANY"},"1,2,3"]
["WEST COAST DRILLING",-4142,6544740.1500000004,"F",2,{"$f":"FETCHCOMMENT(E152)","v":"06-487404\n09-366804"},2,{"$f":"FETCHCOMMENT(G152)","v":"GRANITE CONSTRUCTION COMPANY\nPAPICH CONSTRUCTION COMPANY"},"6,9"]
[null,null,null,null,null,{"$f":"FETCHCOMMENT(E153)","v":""},null,{"$f":"FETCHCOMMENT(G153)","v":""}]
[null,null,null,null,null,{"$f":"FETCHCOMMENT(E154)","v":""},null,{"$f":"FETCHCOMMENT(G154)","v":""}]
[]
["African American","Column1","Dollars","M/F","# of Contracts","Contract #","# of Primes","Prime Name","Districts"]
["ALLUVION BIOLOGICAL CONSULTING",-4142,160600,"M",2,{"$f":"FETCHCOMMENT(E157)","v":"10-0Q2104\n01-0J8904\n"},2,{"$f":"FETCHCOMMENT(G157)","v":"BAY CITIES PAVING & GRADING, INC.\nMERCER-FRASER COMPANY"},"1,10"]
["AMERICAN TRAFFIC BARRICADE & SAFETY CO",-4142,23776.799999999999,"M",1,{"$f":"FETCHCOMMENT(E158)","v":"09-387704"},1,{"$f":"FETCHCOMMENT(G158)","v":"SB GENERAL ENGINEERING INC"},9]
["APPIAN UDBE SWPPPS",-4142,750,"F",1,{"$f":"FETCHCOMMENT(E159)","v":"05-1K6404"},1,{"$f":"FETCHCOMMENT(G159)","v":"GRANITE CONSTRUCTION COMPANY"},5]
["BARYEH CONSTRUCTION ENGINEERS",-4142,666260,"M",1,{"$f":"FETCHCOMMENT(E160)","v":"07-346804"},1,{"$f":"FETCHCOMMENT(G160)","v":"TORO ENTERPRISES INC"},7]
["BLACK DIAMOND ASPHALT INC",33,7189364.4799999995,"F",10,{"$f":"FETCHCOMMENT(E161)","v":"03-0J01U4\n03-4H8704\n01-0J8904\n10-1L2804\n04-2Q5504\n10-1J8204\n02-3H6904\n01-0H6004\n10-0Q2104\n01-0J2104"},6,{"$f":"FETCHCOMMENT(G161)","v":"MERCER-FRASER COMPANY\nO.C. JONES & SONS, INC.\nBAY CITIES PAVING & GRADING INC\nGEORGE REED, INC.\nDIG IT CONSTRUCTION, INC.\nARGONAUT CONSTRUCTORS"},"1,3,4,10"]
["CGO CONSTRUCTION COMPANY",-4142,599600,"M",3,{"$f":"FETCHCOMMENT(E162)","v":"08-1K4004\n11-430194\n12-0K8704"},3,{"$f":"FETCHCOMMENT(G162)","v":"BEADOR CONSTRUCTION COMPANY, INC.\nHAZARD CONSTRUCTION COMPANY DBA HAZARD CONSRUCTION ENGR LLC\nORTIZ ENTERPRISES, INC."},"8,11,12"]
["DBE DIRECT, LLC",-4142,1168500,"M",4,{"$f":"FETCHCOMMENT(E163)","v":"06-487404\n08-1K6904\n07-370404\n12-0K8704"},3,{"$f":"FETCHCOMMENT(G163)","v":"GRANITE CONSTRUCTION COMPANY\nGRIFFITH COMPANY\nORTIZ ENTERPRISES, INC."},"6,7,8,12"]
["DEPENDABLE PETROLEUM",33,4025843.7,"M",8,{"$f":"FETCHCOMMENT(E164)","v":"07-4X9704\n08-1J4504\n07-347904\n12-0R3114\n07-346304\n08-0G8504\n01-0K8904\n10-1H7004"},6,{"$f":"FETCHCOMMENT(G164)","v":"BEADOR CONSTRUCTION COMPANY, INC.\nALL AMERICAN ASPHALT\nRASMUSSEN/VANGUARD\nGRANITE CONSTRUCTION COMPANY\nCHUMO CONSTRUCTION, INC.\nGEORGE REED, INC."},"1,7,8,10,12"]
["DOUBLE G'S SUPPLY INC",33,36206.660000000003,"F",1,{"$f":"FETCHCOMMENT(E165)","v":"11-430194\n"},1,{"$f":"FETCHCOMMENT(G165)","v":"HAZARD CONSTRUCTION COMPANY DBA HAZARD CONSRUCTION ENGR LLC"},11]
["DYNAMIC GENERATOR SERVICE INC.",-4142,864025,"M",2,{"$f":"FETCHCOMMENT(E166)","v":"10-1J8204\n10-1N9004"},2,{"$f":"FETCHCOMMENT(G166)","v":"GEORGE REED, INC.\nFBD VANGUARD CONSTRUCTION, INC."},10]
["HYDRO2GEOTECH, LLC",-4142,247100,"M",2,{"$f":"FETCHCOMMENT(E167)","v":"05-1H6504\n12-0K91U4"},1,{"$f":"FETCHCOMMENT(G167)","v":"GRANITE CONSTRUCTION COMPANY"},"5,12"]
["K&G CONCRETE PUMPING",-4142,44195.6,"M",2,{"$f":"FETCHCOMMENT(E168)","v":"05-1K6404\n04-2Q8004"},2,{"$f":"FETCHCOMMENT(G168)","v":"GRANITE CONSTRUCTION COMPANY\nGORDON N. BALL, INC."},"4,5"]
["MARVELLA STEEL PLACERS",-4142,486661.10000000003,"F",2,{"$f":"FETCHCOMMENT(E169)","v":"07-348204\n12-0R3114"},2,{"$f":"FETCHCOMMENT(G169)","v":"BOSCO CONSTRUCTORS, INC.\nBEADOR CONSTRUCTION COMPANY, INC."},"7,12"]
["SNLM LANDSCAPE",-4142,328000,"M",2,{"$f":"FETCHCOMMENT(E170)","v":"12-0K91U4\n08-1M7404"},2,{"$f":"FETCHCOMMENT(G170)","v":"GRANITE CONSTRUCTION COMPANY\nINTERSTATE CIVIL CONSTRUCTION"},"8,12"]
["SYNERGY TRAFFIC CONTROL",-4142,653325,"M",1,{"$f":"FETCHCOMMENT(E171)","v":"12-0R3134"},1,{"$f":"FETCHCOMMENT(G171)","v":"PETERSON-CHASE GENERAL ENGINEERING CONSTRUCTION, INC."},12]
["THE QUALITY FIRM, ACS, AC SERVICES",-4142,477059,"M",4,{"$f":"FETCHCOMMENT(E172)","v":"08-1J6104\n08-1J2704\n12-0K8704\n07-355204"},4,{"$f":"FETCHCOMMENT(G172)","v":"FBD VANGUARD CONSTRUCTION, INC.\nSULLY-MILLER CONTRACTING COMPANY\nORTIZ ENTERPRISES, INC.\nGRANITE CONSTRUCTION COMPANY"},"7,8,12"]
["THOMPSON CONTRACTING ",-4142,2516950,"M",2,{"$f":"FETCHCOMMENT(E173)","v":"01-0F7104\n02-0K6404"},2,{"$f":"FETCHCOMMENT(G173)","v":"GHILOTTI CONSTRUCTION COMPANY, INC.\nMCCUEN CONSTRUCTION, INC."},"1,2"]
["TIPCO ENGINEERING, INC.",-4142,2060770,"M",2,{"$f":"FETCHCOMMENT(E174)","v":"08-1K4004\n12-0K91U4"},2,{"$f":"FETCHCOMMENT(G174)","v":"BEADOR CONSTRUCTION COMPANY, INC.\nGRANITE CONSTRUCTION COMPANY"},"8,12"]
["ULTIMATE SECURITY SERVICES INC",-4142,235200,"M",1,{"$f":"FETCHCOMMENT(E175)","v":"07-354704"},1,{"$f":"FETCHCOMMENT(G175)","v":"CERTIFIED COATINGS COMPANY"},7]
[null,null,null,null,null,{"$f":"FETCHCOMMENT(E176)","v":""},null,{"$f":"FETCHCOMMENT(G176)","v":""}]
[]
["Sub Cont Asian","Column1","Dollars","M/F","# of Contracts","Contract #","# of Primes","Prime Name","Districts"]
["5 AB TRANS, INC.",-4142,194560,"M",1,{"$f":"FETCHCOMMENT(E179)","v":"10-1H7004"},1,{"$f":"FETCHCOMMENT(G179)","v":"GRANITE CONSTRUCTION COMPANY"},1]
["A1 TRUCKING SVS INC ",43,982657.44,"M",4,{"$f":"FETCHCOMMENT(E180)","v":"04-0P7604\n04-2Q8004\n05-1H6504\n05-1G9504"},3,{"$f":"FETCHCOMMENT(G180)","v":"ST. FRANCIS ELECTRIC, LLC.\nGORDON N. BALL, INC.\nGRANITE CONSTRUCTION COMPANY"},"4,5"]
["A1 TRUCKING SERVICES INC ",43,95520,"M",2,{"$f":"FETCHCOMMENT(E181)","v":"04-1W0904\n04-0AA624"},2,{"$f":"FETCHCOMMENT(G181)","v":"CROSSTOWN ELECTRICAL & DATA INC\nGRANITE ROCK COMPANY"},4]
["AMERICA PACIFIC CONSTRUCTION",43,285426,"M",1,{"$f":"FETCHCOMMENT(E182)","v":"08-1P2804"},1,{"$f":"FETCHCOMMENT(G182)","v":"AMERICA PACIFIC CONSTRUCTION INC"},8]
["C.C. PRODUCTS, INC.",33,1396448,"M",1,{"$f":"FETCHCOMMENT(E183)","v":"12-0R3114"},1,{"$f":"FETCHCOMMENT(G183)","v":"BEADOR CONSTRUCTION COMPANY, INC."},12]
["CENTRAL TRUCKING, INC.",43,864403.6,"M",4,{"$f":"FETCHCOMMENT(E184)","v":"10-0Q2104\n10-1L8704\n10-1J8204\n10-1K8404"},4,{"$f":"FETCHCOMMENT(G184)","v":"BAY CITIES PAVING & GRADING, INC.\nGRANITE CONSTRUCTION COMPANY\nGEORGE REED, INC.\nMOUNTAIN CASCADE INC"},"9,10"]
["DESTINATION ANYWHERE, INC.",33,84000,"M",1,{"$f":"FETCHCOMMENT(E185)","v":"10-1L2804"},1,{"$f":"FETCHCOMMENT(G185)","v":"O.C. JONES & SONS, INC."},10]
["GEODE ENVIRONMENTAL",-4142,225500,"M",1,{"$f":"FETCHCOMMENT(E186)","v":"09-374704"},1,{"$f":"FETCHCOMMENT(G186)","v":"PAPICH CONSTRUCTION COMPANY"},9]
["JABI TRUCKING",43,3482110,"M",2,{"$f":"FETCHCOMMENT(E187)","v":"01-0H6004\n01-0H6404"},2,{"$f":"FETCHCOMMENT(G187)","v":"ARGONAUT CONSTRUCTORS"},1]
["JASS BOYS TRUCK LINES",43,3650023,"M",5,{"$f":"FETCHCOMMENT(E188)","v":"04-2K7404\n04-0K8004\n04-2Q5504\n04-0Q2004\n04-2Q5204"},2,{"$f":"FETCHCOMMENT(G188)","v":"BAY CITIES PAVING & GRADING, INC.\nGHILOTTI BROS INC"},4]
["NAMAN TRUCKING",43,1265085.3999999999,"M",5,{"$f":"FETCHCOMMENT(E189)","v":"04-0Q2004\n07-347904\n07-348204\n07-369704\n07-346504"},5,{"$f":"FETCHCOMMENT(G189)","v":"GHILOTTI BROS., INC.\nRASMUSSEN/VANGUARD\nBOSCO CONSTRUCTORS, INC.\nC.A. RASMUSSEN INC\nSECURITY PAVING COMPANY, INC."},"4,7"]
["R&G TRUCKING",43,289437,"M",2,{"$f":"FETCHCOMMENT(E190)","v":"01-0K8904\n04-2K3604"},2,{"$f":"FETCHCOMMENT(G190)","v":"GRANITE CONSTRUCTION COMPANY\nGHILOTTI BROS., INC."},"1,4"]
["S&S TRUCKING",43,225150,"M",1,{"$f":"FETCHCOMMENT(E191)","v":"01-0F7104"},1,{"$f":"FETCHCOMMENT(G191)","v":"GHILOTTI CONSTRUCTION COMPANY, INC."},1]
["SEQUOIA CONSULTANTS",33,2127048.9699999997,"M",16,{"$f":"FETCHCOMMENT(E192)","v":"03-4H8704\n11-430384\n08-1J6104\n12-0R3134\n11-056404\n06-487404\n08-1K4004\n08-1K6904\n09-374704\n06-0Y1704\n07-347904\n07-351704\n12-0R3114\n07-369704\n08-0G8504\n11-430194"},9,{"$f":"FETCHCOMMENT(G192)","v":"O.C. JONES & SONS, INC.\nHAZARD CONSTRUCTION ENGR, LLC\nFBD VANGUARD CONSTRUCTION, INC.\nPETERSON-CHASE GENERAL ENGINEERING CONSTRUCTION, INC.\nGRANITE CONSTRUCTION COMPANY\nBEADOR CONSTRUCTION COMPANY, INC.\nPAPICH CONSTRUCTION COMPANY INC\nRASMUSSEN/VANGUARD\nC. A. RASMUSSEN, INC."},"3,6,7,8,9,11,12"]
["SIERRA GEOTECH DBE INC",-4142,276815.64,"M",5,{"$f":"FETCHCOMMENT(E193)","v":"03-0J01U4\n01-0F7104\n05-1H6504\n04-2Q6504\n05-1G9504"},5,{"$f":"FETCHCOMMENT(G193)","v":"MERCER-FRASER COMPANY\nGHILOTTI CONSTRUCTION COMPANY, INC.\nGRANITE CONSTRUCTION COMPANY\nBAY CITIES PAVING & GRADING, INC.\nGORDON N BALL INC"},"1,3,4,5"]
["TSI ENGINEERING, INC.",-4142,6124087,"M",1,{"$f":"FETCHCOMMENT(E194)","v":"08-1J3304\n"},1,{"$f":"FETCHCOMMENT(G194)","v":"TSI ENGINEERING, INC."},8]
[null,null,null,null,null,{"$f":"FETCHCOMMENT(E195)","v":""},null,{"$f":"FETCHCOMMENT(G195)","v":""}]
[null,null,null,null,null,{"$f":"FETCHCOMMENT(E196)","v":""},null,{"$f":"FETCHCOMMENT(G196)","v":""}]
[null,null,null,null,null,{"$f":"FETCHCOMMENT(E197)","v":""},null,{"$f":"FETCHCOMMENT(G197)","v":""}]
[null,null,null,null,null,{"$f":"FETCHCOMMENT(E198)","v":""},null,{"$f":"FETCHCOMMENT(G198)","v":""}]
[null,null,null,null,null,{"$f":"FETCHCOMMENT(E199)","v":""},null,{"$f":"FETCHCOMMENT(G199)","v":""}]
[]
["Asian Pacific","Column1","Dollars","M/F","# of Contracts","Contract #","# of Primes","Prime Name","Districts"]
["ACCU CONSTRUCTION",-4142,1057600,"M",2,{"$f":"FETCHCOMMENT(E202)","v":"07-348404\n07-356504"},1,{"$f":"FETCHCOMMENT(G202)","v":"ACCU CONSTRUCTION, INC."},7]
["ACE FENCE COMPANY",33,12793369.219999999,"F",18,{"$f":"FETCHCOMMENT(E203)","v":"11-430384\n06-0X250\n07-333604\n12-0R3134\n05-1Q03U4\n08-1J3004\n11-056404\n06-487404\n07-4X9704\n12-0K91U4\n12-0R3154\n08-1K6904\n06-0Y1704\n12-0R3114\n06-0W79U4\n08-0G8504\n11-430194\n07-346504"},8,{"$f":"FETCHCOMMENT(G203)","v":"HAZARD CONSTRUCTION ENGR, LLC\nGRANITE CONSTRUCTION COMPANY\nSULLY-MILLER CONTRACTING COMPANY\nPETERSON-CHASE GENERAL ENGINEERING CONSTRUCTION, INC.\nPAPICH CONSTRUCTION COMPANY, INC.\nBEADOR CONSTRUCTION COMPANY, INC.\nPOWELL CONSTRUCTORS, INC.\nSECURITY PAVING COMPANY, INC."},"5,6,7,8,11,12"]
["ACE SWEEPERS & WATER TRUCKS",43,355618.5,"M",5,{"$f":"FETCHCOMMENT(E204)","v":"04-0K6404\n04-3J2604\n10-1L2804\n04-4G7804\n04-2Q6504"},2,{"$f":"FETCHCOMMENT(G204)","v":"O.C. JONES & SONS, INC.\nBAY CITIES PAVING & GRADING, INC."},"4,10"]
["BRIDGE RUBBER BEARING, LLC",-4142,112124.04000000001,"M",4,{"$f":"FETCHCOMMENT(E205)","v":"06-487404\n04-0P9304\n07-369704\n12-0K8704"},4,{"$f":"FETCHCOMMENT(G205)","v":"GRANITE CONSTRUCTION COMPANY\nBUGLER CONSTRUCTION, INC.\nC. A. RASMUSSEN, INC.\nORTIZ ENTERPRISES, INC."},"4,6,7,12"]
["CALIFORNIA PROFESSIONAL",-4142,4682780.2300000004,"M",7,{"$f":"FETCHCOMMENT(E206)","v":"07-4X9704\n08-1J2704\n12-0S7004\n07-350314\n07-350334\n08-1J4504\n08-1M7404"},6,{"$f":"FETCHCOMMENT(G206)","v":"BEADOR CONSTRUCTION COMPANY, INC.\nSULLY-MILLER CONTRACTING COMPANY\nAUTOBAHN CONSTRUCTION, INC.\nCROSSTOWN ELECTRICAL & DATA, INC.\nALL AMERICAN ASPHALT\nINTERSTATE CIVIL CONSTRUCTION"},"7,8,12"]
["FEHOKO CONCRETE INC",43,308789,"M",1,{"$f":"FETCHCOMMENT(E207)","v":"07-346104"},1,{"$f":"FETCHCOMMENT(G207)","v":"POWELL CONSTRUCTORS, INC."},7]
["DR. TRAFFIC CONTROL LLC",-4142,2941,"M",1,{"$f":"FETCHCOMMENT(E208)","v":"04-0K8004"},1,{"$f":"FETCHCOMMENT(G208)","v":"GHILOTTI BROS INC"},4]
["GLOBAL ROAD SEALING INC",-4142,2266388.9300000002,"M",13,{"$f":"FETCHCOMMENT(E209)","v":"12-0S1404\n01-0H6004\n07-333604\n07-377604\n08-1J7204\n12-0K91U4\n12-0R57U4\n04-2Q5504\n07-347904\n12-0R3114\n07-346304\n07-369704\n12-0S8404"},11,{"$f":"FETCHCOMMENT(G209)","v":"CHUMO CONSTRUCTION, INC.\nARGONAUT CONSTRUCTORS\nSULLY-MILLER CONTRACTING COMPANY\nPTM GENERAL ENGINEERING SERVICES, INC.\nGRANITE CONSTRUCTION COMPANY\nSECURITY PAVING COMPANY, INC.\nBAY CITIES PAVING & GRADING INC\nRASMUSSEN/VANGUARD\nBEADOR CONSTRUCTION COMPANY, INC.\nC. A. RASMUSSEN, INC.\nBAKER ELECTRIC AND RENEWABLES LLC"},"1,4,7,8,12"]
["GOLDEN STATE TRUCKING",43,661700,"M",2,{"$f":"FETCHCOMMENT(E210)","v":"04-0K6404\n04-3J2604\n"},1,{"$f":"FETCHCOMMENT(G210)","v":"O.C. JONES & SONS, INC."},4]
["IMRAE",-4142,46458,"M",1,{"$f":"FETCHCOMMENT(E211)","v":"01-0J8904"},1,{"$f":"FETCHCOMMENT(G211)","v":"MERCER-FRASER COMPANY"},1]
["IPS GRINDING AND GROOVING",-4142,514004.73,"F",6,{"$f":"FETCHCOMMENT(E212)","v":"07-370404\n07-351704\n08-1J4504\n08-1M7404\n07-369704\n12-0K8704"},5,{"$f":"FETCHCOMMENT(G212)","v":"GRIFFITH COMPANY\nC. A. RASMUSSEN, INC.\nALL AMERICAN ASPHALT\nINTERSTATE CIVIL CONSTRUCTION\nORTIZ ENTERPRISES, INC."},"7,8,12"]
["LEGACY REINFORCING STEEL LLC",-4142,1244574.6600000001,"M",3,{"$f":"FETCHCOMMENT(E213)","v":"11-056404\n08-1K4004\n07-346104"},3,{"$f":"FETCHCOMMENT(G213)","v":"HAZARD CONSTRUCTION ENGR, LLC\nBEADOR CONSTRUCTION COMPANY, INC.\nPOWELL CONSTRUCTORS, INC."},"7,8,11"]
["NITTA EROSION CONTROL",-4142,18699.2,"F",1,{"$f":"FETCHCOMMENT(E214)","v":"10-0Q2104"},1,{"$f":"FETCHCOMMENT(G214)","v":"BAY CITIES PAVING & GRADING, INC."},10]
["PRIME SUPPLY 1",33,517868.51,"F",9,{"$f":"FETCHCOMMENT(E215)","v":"11-430384\n05-1J7804\n11-056404\n01-0H6404\n12-0R57U4\n07-348204\n11-430194\n12-0K8704\n07-346504"},6,{"$f":"FETCHCOMMENT(G215)","v":"HAZARD CONSTRUCTION ENGR, LLC\nCALPORTLAND CONSTRUCTION\nWYLATTI RESOURCE MANAGEMENT, INC.\nSECURITY PAVING COMPANY, INC.\nBOSCO CONSTRUCTORS, INC.\nORTIZ ENTERPRISES INC"},"1,5,7,11,12"]
["S. KWOK ENGINEERS",-4142,183552,"M",6,{"$f":"FETCHCOMMENT(E216)","v":"04-2K7404\n04-0K8004\n04-2Q5504\n04-0P9304\n04-2Q6504\n04-2Q5204"},3,{"$f":"FETCHCOMMENT(G216)","v":"BAY CITIES PAVING & GRADING, INC.\nGHILOTTI BROS INC\nBUGLER CONSTRUCTION, INC."},4]
["TRAFFIC LOOPS CRACKFILLING INC",-4142,5987116,"F",6,{"$f":"FETCHCOMMENT(E217)","v":"11-430384\n08-1J6104\n12-0R57U4\n07-370404\n10-1L8704\n09-366804"},6,{"$f":"FETCHCOMMENT(G217)","v":"HAZARD CONSTRUCTION ENGR, LLC\nFBD VANGUARD CONSTRUCTION, INC.\nSECURITY PAVING COMPANY, INC.\nGRIFFITH COMPANY\nGRANITE CONSTRUCTION COMPANY\nPAPICH CONSTRUCTION COMPANY"},"7,8,9,10,11,12"]
["TRI COUNTIES TRUCKING",43,1228385,"F",3,{"$f":"FETCHCOMMENT(E218)","v":"03-4H8704\n04-0K6404\n03-1H1404"},2,{"$f":"FETCHCOMMENT(G218)","v":"O.C. JONES & SONS, INC.\nMARTIN BROTHERS CONSTRUCTION"},"3,4"]
["TRINITY FENCE COMPANY",-4142,990193,"M",2,{"$f":"FETCHCOMMENT(E219)","v":"08-1K4004\n07-346104"},2,{"$f":"FETCHCOMMENT(G219)","v":"BEADOR CONSTRUCTION COMPANY, INC.\nPOWELL CONSTRUCTORS, INC."},"7,8"]
["VT ELECTRIC",-4142,2803881,"M",3,{"$f":"FETCHCOMMENT(E220)","v":"12-0K8704\n07-4V5404\n07-346104"},3,{"$f":"FETCHCOMMENT(G220)","v":"ORTIZ ENTERPRISES, INC.\nGENUINE ENGINEERING INC\nPOWELL CONSTRUCTORS, INC."},"7,12"]
["WANG TECHNOLOGY LLC",-4142,113952,"F",3,{"$f":"FETCHCOMMENT(E221)","v":"04-2K3604\n04-0AA624\n04-2Q5204"},3,{"$f":"FETCHCOMMENT(G221)","v":"GHILOTTI BROS., INC.\nGRANITE ROCK COMPANY\nBAY CITIES PAVING & GRADING, INC."},4]
["ZETH ENGINEERING ",-4142,3745820.2,"M",1,{"$f":"FETCHCOMMENT(E222)","v":"08-0G8504"},1,{"$f":"FETCHCOMMENT(G222)","v":"GRANITE CONSTRUCTION COMPANY"},8]
[null,null,null,null,null,{"$f":"FETCHCOMMENT(E223)","v":""},null,{"$f":"FETCHCOMMENT(G223)","v":""}]
[]
["Other","Column1","Dollars","M/F","# of Contracts","Contract #","# of Primes","Prime Name","Districts"]
["ANDREW TEIXEIRA WATER TRUCK",43,{"$f":"'[1]Construction Worksheet'!AW11","v":58080},"M",1,{"$f":"FETCHCOMMENT(E226)","v":"04-2K3604"},1,{"$f":"FETCHCOMMENT(G226)","v":"GHILOTTI BROS., INC."},10]
[null,null,null,null,null,{"$f":"FETCHCOMMENT(E227)","v":""},null,{"$f":"FETCHCOMMENT(G227)","v":""}]
[]
["Non Minority Women","Column1","Dollars","M/F","# of Contracts","Contract #","# of Primes","Prime Name","Districts"]
["ACTION SWEEPING SERVICES INC",43,278810,"F",4,{"$f":"FETCHCOMMENT(E230)","v":"03-4H8704\n06-487404\n10-1L8704\n01-0K8904"},2,{"$f":"FETCHCOMMENT(G230)","v":"O.C. JONES & SONS, INC.\nGRANITE CONSTRUCTION COMPANY\n"},"1,3,6,10"]
["ALTA GROUP",-4142,397500.2,"F",4,{"$f":"FETCHCOMMENT(E231)","v":"03-4H8704\n04-2K7404\n04-0K8004\n01-0K8904"},3,{"$f":"FETCHCOMMENT(G231)","v":"O.C. JONES & SONS, INC.\nBAY CITIES PAVING & GRADING, INC.\nGHILOTTI BROS INC"},"3,4"]
["AMERICAN TRAFFIC SAFETY",-4142,22600,"F",1,{"$f":"FETCHCOMMENT(E232)","v":"10-1J8204"},1,{"$f":"FETCHCOMMENT(G232)","v":"GEORGE REED, INC."},10]
["AURORA INDSTRIAL HYGIENE",-4142,1000,"F",1,{"$f":"FETCHCOMMENT(E233)","v":"02-3H6904"},1,{"$f":"FETCHCOMMENT(G233)","v":"DIG IT CONSTRUCTION, INC."},2]
["AVILA TRAFFIC SAFETY ",33,3188598.6,"F",5,{"$f":"FETCHCOMMENT(E234)","v":"05-1J7804\n04-1Q2004\n05-1H6504\n05-1K4504\n05-1K5104"},4,{"$f":"FETCHCOMMENT(G234)","v":"CALPORTLAND CONSTRUCTION\nCOLUMBIA ELECTRIC, INC.\nGRANITE CONSTRUCTION COMPANY\nCENTRAL COAST FINANCIAL GROUP, INC. DBA CCFG CONSTRUCTION"},"4,5"]
["BANCROFT CONSTRUCTION SERVICES",-4142,1473800,"F",2,{"$f":"FETCHCOMMENT(E235)","v":"08-1K6904\n07-370404"},2,{"$f":"FETCHCOMMENT(G235)","v":"GRANITE CONSTRUCTION COMPANY\nGRIFFITH COMPANY"},"7,8"]
["BOUTHILLIER CONSTRUCTION, INC.",-4142,882747,"F",1,{"$f":"FETCHCOMMENT(E236)","v":"01-0H6404"},1,{"$f":"FETCHCOMMENT(G236)","v":"WYLATTI RESOURCE MANAGEMENT, INC."},1]
["CAIN TRUCKING, INC.",33,17150215,"F",4,{"$f":"FETCHCOMMENT(E237)","v":"06-487404\n06-0W79U4\n09-366804\n04-0AA624"},4,{"$f":"FETCHCOMMENT(G237)","v":"GRANITE CONSTRUCTION COMPANY\nSECURITY PAVING COMPANY, INC.\nPAPICH CONSTRUCTION COMPANY, INC.\nGRANITE ROCK COMPANY"},"4,6,9"]
["CAL SIGNAL CORP",-4142,308348.88,"F",3,{"$f":"FETCHCOMMENT(E238)","v":"04-2Q8004\n05-1H6504\n05-1K6404"},2,{"$f":"FETCHCOMMENT(G238)","v":"GORDON N. BALL, INC.\nGRANITE CONSTRUCTION COMPANY"},"4,5"]
["CALIFORNIA TRAFFIC SAFETY",-4142,684628.5,"F",1,{"$f":"FETCHCOMMENT(E239)","v":"04-0K6404"},1,{"$f":"FETCHCOMMENT(G239)","v":"O.C. JONES & SONS, INC."},4]
["CAROLINA CONSTRUCTION SUPPLIES",33,486205.07,"F",3,{"$f":"FETCHCOMMENT(E240)","v":"12-0K91U4\n12-0R57U4\n07-351704"},3,{"$f":"FETCHCOMMENT(G240)","v":"GRANITE CONSTRUCTION COMPANY\nSECURITY PAVING COMPANY, INC.\nC. A. RASMUSSEN, INC."},"7, 12"]
["CAT TRACKING",-4142,103312.55,"F",2,{"$f":"FETCHCOMMENT(E241)","v":"07-4X9704\n12-0S8404"},2,{"$f":"FETCHCOMMENT(G241)","v":"BEADOR CONSTRUCTION COMPANY, INC.\nBAKER ELECTRIC & RENEWABLES, LLC"},"7,12"]
["CES",-4142,53760.76,"F",3,{"$f":"FETCHCOMMENT(E242)","v":"07-347904\n07-348204\n12-0S8404"},3,{"$f":"FETCHCOMMENT(G242)","v":"RASMUSSEN/VANGUARD\nBOSCO CONSTRUCTORS, INC.\nBAKER ELECTRIC & RENEWABLES, LLC"},"7,12"]
["CHAPCO CONSTRUCTION",-4142,258700,"F",1,{"$f":"FETCHCOMMENT(E243)","v":"10-1K8404"},1,{"$f":"FETCHCOMMENT(G243)","v":"MOUNTAIN CASCADE, INC."},10]
["CMC TRAFFIC CONTROL",-4142,1528234.66,"F",6,{"$f":"FETCHCOMMENT(E244)","v":"04-0K1004\n04-3J2604\n04-2Q8004\n04-1Q2004\n04-0Q2004\n04-0Q1304"},5,{"$f":"FETCHCOMMENT(G244)","v":"MIKE BROWN ELECTRIC CO.\nO.C. JONES & SONS, INC.\nGORDON N. BALL, INC.\nCOLUMBIA ELECTRIC, INC.\nGHILOTTI BROS., INC."},4]
["COLUMBIA ELECTRIC, INC.",-4142,8785643,"F",6,{"$f":"FETCHCOMMENT(E245)","v":"04-1Q2004\n04-0K6404\n04-0P9204\n04-0Q2004\n04-2Q6504\n04-0Q1304"},5,{"$f":"FETCHCOMMENT(G245)","v":"COLUMBIA ELECTRIC, INC.\nO.C. JONES & SONS, INC.\nMYERS & SONS CONSTRUCTION, LLC.\nGHILOTTI BROS., INC.\nBAY CITIES PAVING & GRADING, INC."},4]
["CONSTRUCTION SURVEY, INC.",-4142,16000,"F",1,{"$f":"FETCHCOMMENT(E246)","v":"04-2Q6104"},1,{"$f":"FETCHCOMMENT(G246)","v":"GRANITE ROCK COMPANY"},4]
["CONTERA CONSTRUCTION CORP",33,2100400,"F",2,{"$f":"FETCHCOMMENT(E247)","v":"11-056404\n08-1K4004"},2,{"$f":"FETCHCOMMENT(G247)","v":"HAZARD CONSTRUCTION ENGR, LLC\nBEADOR CONSTRUCTION COMPANY, INC."},"8,11"]
["COOPER ENGINEERING",33,3828691.9,"F",5,{"$f":"FETCHCOMMENT(E248)","v":"12-0S1404\n12-0R3134\n07-346304\n01-0K8904\n12-0U9104"},3,{"$f":"FETCHCOMMENT(G248)","v":"CHUMO CONSTRUCTION, INC.\nPETERSON-CHASE GENERAL ENGINEERING CONSTRUCTION, INC.\nGRANITE CONSTRUCTION COMPANY"},"1,7,12"]
["CRW ASSIST",-4142,121270,"F",1,{"$f":"FETCHCOMMENT(E249)","v":"02-3H6904"},1,{"$f":"FETCHCOMMENT(G249)","v":"DIG IT CONSTRUCTION, INC."},2]
["DEES BURKE ENGINEERING",-4142,9144032.1500000004,"F",22,{"$f":"FETCHCOMMENT(E250)","v":"05-1J7804\n04-2Q6104\n04-4K3004\n01-0J8904\n04-0P9204\n02-4H0704\n04-2Q8004\n05-1H6504\n05-1K4504\n12-0K91U4\n12-0R3154\n08-1K6904\n04-2Q5504\n07-370404\n12-0R32U4\n05-1J8604\n04-0P9304\n07-350314\n06-0W79U4\n09-366804\n07-346104\n08-1M0404"},17,{"$f":"FETCHCOMMENT(G250)","v":"CALPORTLAND CONSTRUCTION\nGRANITE ROCK COMPANY\nGORDON N. BALL, INC.\nMERCER-FRASER COMPANY\nMYERS & SONS CONSTRUCTION LLC\nHAT CREEK CONSTRUCTION & MATERIALS, INC.\nGRANITE CONSTRUCTION COMPANY\nPOWELL CONSTRUCTORS, INC.\nBAY CITIES PAVING & GRADING INC\nGRIFFITH COMPANY\nR.J. NOBLE COMPANY\nPAPICH CONSTRUCTION COMPANY\nBUGLER CONSTRUCTION, INC.\nCROSSTOWN ELECTRICAL & DATA, INC.\nSECURITY PAVING COMPANY, INC.\nPOWELL CONSTRUCTORS, INC.\nINTERSTATE CIVIL CONSTRUCTION"},"1,2,4,5,6,7,8,9,12"]
["DIVERSIFIED LANDSCAPE CO",-4142,12311210.91,"F",18,{"$f":"FETCHCOMMENT(E251)","v":"11-430384\n07-333604\n08-1J6104\n08-1J3004\n08-1J2704\n08-1J7204\n12-0K91U4\n08-1K6904\n07-332304\n07-346804\n12-0R32U4\n07-350334\n08-1M7404\n12-0R3114\n07-346304\n11-430194\n12-0S8404"},12,{"$f":"FETCHCOMMENT(G251)","v":"HAZARD CONSTRUCTION ENGR, LLC\nSULLY-MILLER CONTRACTING COMPANY\nFBD VANGUARD CONSTRUCTION, INC.\nGRANITE CONSTRUCTION COMPANY\nTORO ENTERPRISES INC\nR.J. NOBLE COMPANY\nCROSSTOWN ELECTRICAL & DATA, INC.\nINTERSTATE CIVIL CONSTRUCTION\nBEADOR CONSTRUCTION COMPANY, INC.\nCHUMO CONSTRUCTION\nBAKER ELECTRIC & RENEWABLES, LLC\nPOWELL CONSTRUCTORS, INC."},"7,8,11,12"]
["DOUBLE E TRANSPORTATION INC",43,3435252.04,"F",4,{"$f":"FETCHCOMMENT(E252)","v":"05-1Q03U4\n09-374704\n05-1J8604\n06-0Y1704"},1,{"$f":"FETCHCOMMENT(G252)","v":"PAPICH CONSTRUCTION COMPANY, INC."},"5,6,9"]
["E. AMEZCUA TRUCKING, INC.",43,139780,"F",1,{"$f":"FETCHCOMMENT(E253)","v":"05-1K6404"},1,{"$f":"FETCHCOMMENT(G253)","v":"GRANITE CONSTRUCTION COMPANY"},5]
["ETA HUMBOLDT",-4142,291176.25,"F",2,{"$f":"FETCHCOMMENT(E254)","v":"01-0H6404\n01-0J2104"},2,{"$f":"FETCHCOMMENT(G254)","v":"WYLATTI RESOURCE MANAGEMENT, INC.\nMERCER-FRASER COMPANY"},1]
["FOREFRONT DEEP FOUNDATIONS INC",-4142,266470.52,"F",1,{"$f":"FETCHCOMMENT(E255)","v":"05-1J7804\n"},1,{"$f":"FETCHCOMMENT(G255)","v":"CALPORTLAND CONSTRUCTION"},5]
["GALLAWAY ENTERPRISES",-4142,12635,"F",2,{"$f":"FETCHCOMMENT(E256)","v":"03-4H8704\n02-4H0604"},2,{"$f":"FETCHCOMMENT(G256)","v":"O.C. JONES & SONS, INC.\nHAT CREEK CONSTRUCTION & MATERIALS, INC."},"2,3"]
["GALLION SWEEPING CO",43,1359767.2,"F",4,{"$f":"FETCHCOMMENT(E257)","v":"07-370404\n07-347904\n07-351704\n07-369704"},3,{"$f":"FETCHCOMMENT(G257)","v":"GRIFFITH COMPANY\nRASMUSSEN/VANGUARD\nC. A. RASMUSSEN, INC."},7]
["GDS INDUSTRIES INC",33,1120759.1200000001,"F",3,{"$f":"FETCHCOMMENT(E258)","v":"04-0P7604\n08-0G8504\n04-2Q5204"},3,{"$f":"FETCHCOMMENT(G258)","v":"ST. FRANCIS ELECTRIC, LLC.\nGRANITE CONSTRUCTION COMPANY\nBAY CITIES PAVING & GRADING, INC."},"4,8"]
["GEM GRIFFIN ENGINEERING",-4142,24700,"F",1,{"$f":"FETCHCOMMENT(E259)","v":"12-0K8704"},1,{"$f":"FETCHCOMMENT(G259)","v":"ORTIZ ENTERPRISES INC"},12]
["GENUINE ENGINEERING INC",-4142,808152.5,"F",1,{"$f":"FETCHCOMMENT(E260)","v":"07-4V5404"},1,{"$f":"FETCHCOMMENT(G260)","v":"GENUINE ENGINEERING INC"},7]
["GREGORY CONSTRUCTION EQUIPMENT",43,209920,"F",3,{"$f":"FETCHCOMMENT(E261)","v":"03-0J01U4\n02-3H6904\n10-0Q2104"},3,{"$f":"FETCHCOMMENT(G261)","v":"MERCER-FRASER COMPANY\nDIG IT CONSTRUCTION, INC.\nBAY CITIES PAVING & GRADING, INC."},"2,3,10"]
["HARD WAY TRANSPORTATION INC",-4142,2857136.1,"F",2,{"$f":"FETCHCOMMENT(E262)","v":"07-370404\n10-1L8704"},2,{"$f":"FETCHCOMMENT(G262)","v":"GRIFFITH COMPANY\nGRANITE CONSTRUCTION COMPANY"},"7,10"]
["J & M LAND RESTORATION INC",-4142,3844506.52,"F",10,{"$f":"FETCHCOMMENT(E263)","v":"05-1J7804\n02-4H0604\n05-1Q03U4\n06-487404\n09-374704\n09-379104\n06-0Y1704\n06-0W79U4\n03-0J5604\n08-1M0404"},8,{"$f":"FETCHCOMMENT(G263)","v":"CALPORTLAND CONSTRUCTION\nHAT CREEK CONSTRUCTION & MATERIALS, INC.\nPAPICH CONSTRUCTION COMPANY, INC.\nGRANITE CONSTRUCTION COMPANY\nROAD AND HIGHWAY BUILDERS LLC\nSECURITY PAVING COMPANY, INC.\nMERCER-FRASER COMPANY\nINTERSTATE CIVIL CONSTRUCTION"},"2,3,5,6,8,9"]
["JARRETT FOUNDATIONS",33,299297.5,"F",1,{"$f":"FETCHCOMMENT(E264)","v":"01-0J8904"},1,{"$f":"FETCHCOMMENT(G264)","v":"MERCER-FRASER COMPANY"},1]
["K&K CONSTRUCTION SUPPLY, INC.",33,967343.67999999993,"F",4,{"$f":"FETCHCOMMENT(E265)","v":"08-1J6104\n06-487404\n07-347904\n04-0AA624"},4,{"$f":"FETCHCOMMENT(G265)","v":"FBD VANGUARD CONSTRUCTION, INC.\nGRANITE CONSTRUCTION COMPANY\nRASMUSSEN/VANGUARD\nGRANITE ROCK COMPANY"},"6,7,8"]
["KRITZ EXCAVATING & TRUCKING",-4142,40426.400000000001,"F",1,{"$f":"FETCHCOMMENT(E266)","v":"05-1N3404"},1,{"$f":"FETCHCOMMENT(G266)","v":"SOUZA ENGINEERING CONTRACTING, INC. DBA SOUZA CONSTRUCTION"},5]
["KUCK TRUCKING",-4142,1216600,"F",1,{"$f":"FETCHCOMMENT(E267)","v":"09-379104"},1,{"$f":"FETCHCOMMENT(G267)","v":"ROAD AND HIGHWAY BUILDERS LLC"},9]
["LD INNOVATIONS",33,1107975.5999999999,"F",2,{"$f":"FETCHCOMMENT(E268)","v":"10-1K8404\n04-2Q5204"},2,{"$f":"FETCHCOMMENT(G268)","v":"MOUNTAIN CASCADE, INC.\nBAY CITIES PAVING & GRADING, INC."},"4,10"]
["LINDY'S COLD PLANNING",-4142,9220971.25,"F",11,{"$f":"FETCHCOMMENT(E269)","v":"07-333604\n08-1J6104\n08-1J2704\n08-1J7204\n08-1K4004\n12-0K91U4\n08-1K6904\n07-347904\n07-351704\n07-369704\n08-0G8504"},6,{"$f":"FETCHCOMMENT(G269)","v":"SULLY-MILLER CONTRACTING COMPANY\nFBD VANGUARD CONSTRUCTION, INC.\nBEADOR CONSTRUCTION COMPANY, INC.\nGRANITE CONSTRUCTION COMPANY\nRASMUSSEN/VANGUARD\nC. A. RASMUSSEN, INC."},"7,8,12"]
["LMS TRANSPORT",33,13146566.65,"F",16,{"$f":"FETCHCOMMENT(E270)","v":"05-1J7804\n12-0S1404\n07-333604\n08-1J6104\n05-1K4504\n08-1J2704\n08-1J7204\n08-1K4004\n08-1K6904\n07-370404\n09-379104\n12-0R32U4\n07-347904\n07-351704\n07-369704\n12-0K8704"},12,{"$f":"FETCHCOMMENT(G270)","v":"CALPORTLAND CONSTRUCTION\nCHUMO CONSTRUCTION, INC.\nSULLY-MILLER CONTRACTING COMPANY\nFBD VANGUARD CONSTRUCTION, INC.\nBEADOR CONSTRUCTION COMPANY, INC.\nGRANITE CONSTRUCTION COMPANY\nGRIFFITH COMPANY \nROAD AND HIGHWAY BUILDERS LLC\nR.J. NOBLE COMPANY\nRASMUSSEN/VANGUARD\nC. A. RASMUSSEN, INC.\nORTIZ ENTERPRISE INC"},"5,7,8,9,12"]
["LOGISTICAL ENTERPRISES",33,128019.18,"F",1,{"$f":"FETCHCOMMENT(E271)","v":"02-1J75U4"},1,{"$f":"FETCHCOMMENT(G271)","v":"HAT CREEK CONSTRUCTION & MATERIALS, INC."},2]
["LOWERS WELDING & FABRICATION",-4142,52477.88,"F",1,{"$f":"FETCHCOMMENT(E272)","v":"01-0H6404"},1,{"$f":"FETCHCOMMENT(G272)","v":"WYLATTI RESOURCE MANAGEMENT, INC."},1]
["M B PROFESSIONAL",-4142,355294,"F",4,{"$f":"FETCHCOMMENT(E273)","v":"07-347904\n07-351704\n07-346304\n07-346104"},4,{"$f":"FETCHCOMMENT(G273)","v":"RASMUSSEN/VANGUARD\nC. A. RASMUSSEN, INC.\nCHUMO CONSTRUCTION, INC.\nPOWELL CONSTRUCTORS, INC."},7]
["MCW TRAFFIC CONTROL",-4142,1636336,"F",7,{"$f":"FETCHCOMMENT(E274)","v":"03-4H8704\n01-0F7104\n02-0K6404\n10-1L8704\n04-0P9304\n04-2K3604\n05-1G9504"},6,{"$f":"FETCHCOMMENT(G274)","v":"O.C. JONES & SONS, INC.\nGHILOTTI CONSTRUCTION COMPANY, INC.\nMCCUEN CONSTRUCTION, INC.\nGRANITE CONSTRUCTION COMPANY\nBUGLER CONSTRUCTION, INC.\nGORDON N BALL"},"1,2,3,4,5,10"]
["MOUNTAINVIEW BIOLOGICAL",-4142,551950,"F",4,{"$f":"FETCHCOMMENT(E275)","v":"08-1K4004\n08-1J4504\n08-1M7404\n08-0G8504"},4,{"$f":"FETCHCOMMENT(G275)","v":"BEADOR CONSTRUCTION COMPANY, INC.\nALL AMERICAN ASPHALT\nINTERSTATE CIVIL CONSTRUCTION\nGRANITE CONSTRUCTION COMPANY"},8]
["NICHOLLS TRUCKING INC",43,910000,"F",2,{"$f":"FETCHCOMMENT(E276)","v":"01-0J8904\n01-0J2104"},1,{"$f":"FETCHCOMMENT(G276)","v":"MERCER-FRASER COMPANY"},1]
["NORTH STATE GENERAL ENGINEERING",-4142,584727,"F",2,{"$f":"FETCHCOMMENT(E277)","v":"03-1H1404\n03-3H8304"},2,{"$f":"FETCHCOMMENT(G277)","v":"MARTIN BROTHERS CONSTRUCTION\nPACIFIC INFRASTRUCTURE CONSTRUCTION, LLC"},3]
["PAVEMENT MANAGEMENT",-4142,135375,"F",2,{"$f":"FETCHCOMMENT(E278)","v":"02-3H6904\n07-370404"},2,{"$f":"FETCHCOMMENT(G278)","v":"DIG IT CONSTRUCTION, INC.\nGRIFFITH COMPANY"},"2,7"]
["PAYCO SPECIALTIES",-4142,4196380.59,"F",3,{"$f":"FETCHCOMMENT(E279)","v":"11-430384\n11-056404\n11-430194"},1,{"$f":"FETCHCOMMENT(G279)","v":"HAZARD CONSTRUCTION ENGR, LLC"},11]
["PC&N CONSTRUCTION JINC",33,1800022.72,"F",6,{"$f":"FETCHCOMMENT(E280)","v":"04-0K6404\n04-0P9204\n04-0P7604\n04-2Q5504\n04-2K3604\n04-0Q1304"},5,{"$f":"FETCHCOMMENT(G280)","v":"O.C. JONES & SONS, INC.\nMYERS & SONS CONSTRUCTION, LLC.\nST. FRANCIS ELECTRIC, LLC.\nBAY CITIES PAVING & GRADING INC\nGHILOTTI BROS., INC."},4]
["PLAYA SAFETY, INC.",-4142,110581.84,"F",2,{"$f":"FETCHCOMMENT(E281)","v":"08-1J6104\n07-346504"},2,{"$f":"FETCHCOMMENT(G281)","v":"FBD VANGUARD CONSTRUCTION, INC.\nSECURITY PAVING COMPANY, INC."},"7,8"]
["QUALITY HYDROSEEDING",33,99566.399999999994,"F",1,{"$f":"FETCHCOMMENT(E282)","v":"08-0G8504"},1,{"$f":"FETCHCOMMENT(G282)","v":"GRANITE CONSTRUCTION COMPANY"},8]
["R DUGAN CONSTRUCTION",-4142,341831,"F",1,{"$f":"FETCHCOMMENT(E283)","v":"11-430194"},1,{"$f":"FETCHCOMMENT(G283)","v":"HAZARD CONSTRUCTION COMPANY DBA HAZARD CONSRUCTION ENGR LLC"},11]
["RCR TRAFFIC SPECIALIST",33,21913.919999999998,"F",1,{"$f":"FETCHCOMMENT(E284)","v":"07-332304"},1,{"$f":"FETCHCOMMENT(G284)","v":"TORO ENTERPRISES INC"},7]
["RDL EQUIPMENT",33,380000,"F",1,{"$f":"FETCHCOMMENT(E285)","v":"12-0K91U4"},1,{"$f":"FETCHCOMMENT(G285)","v":"GRANITE CONSTRUCTION COMPANY"},12]
["ROBERTS OIL CORPORATION",33,979238.40000000002,"F",2,{"$f":"FETCHCOMMENT(E286)","v":"11-430384\n12-0R57U4"},2,{"$f":"FETCHCOMMENT(G286)","v":"HAZARD CONSTRUCTION ENGR, LLC\nSECURITY PAVING COMPANY, INC."},"11,12"]
["ROLL N ROCK CONSTRUCTION",-4142,7430897.3700000001,"F",9,{"$f":"FETCHCOMMENT(E287)","v":"03-0J01U4\n01-0H6004\n02-3H6904\n01-0J8904\n03-1H1404\n03-3H8304\n01-0J2104\n02-2J2204\n03-0J5604"},6,{"$f":"FETCHCOMMENT(G287)","v":"MERCER-FRASER COMPANY\nARGONAUT CONSTRUCTORS\nDIG IT CONSTRUCTION, INC.\nMARTIN BROTHERS CONSTRUCTION\nPACIFIC INFRASTRUCTURE CONSTRUCTION, LLC\nHIGHWAY SPECIALTY COMPANY, INC."},"1,2,3"]
["ROUCH REBAR INC",-4142,77015,"F",1,{"$f":"FETCHCOMMENT(E288)","v":"08-1M0404"},1,{"$f":"FETCHCOMMENT(G288)","v":"INTERSTATE CIVIL CONSTRUCTION"},8]
["S.A.M. RHODES ",-4142,548350,"F",10,{"$f":"FETCHCOMMENT(E289)","v":"03-0J01U4\n02-4H0604\n01-0J8904\n02-4H03U4\n02-1J75U4\n02-4H0104\n02-4H0704\n05-1H6504\n01-0K8904\n01-0J2104"},3,{"$f":"FETCHCOMMENT(G289)","v":"MERCER-FRASER COMPANY\nHAT CREEK CONSTRUCTION & MATERIALS, INC.\nGRANITE CONSTRUCTION COMPANY"},"1,2,3,5"]
["SCHOTKA CONSTRUCTION",-4142,136280,"F",2,{"$f":"FETCHCOMMENT(E290)","v":"04-0K8004\n04-0AA624"},2,{"$f":"FETCHCOMMENT(G290)","v":"GHILOTTI BROS INC\nGRANITE ROCK COMPANY"},4]
["SELL LUMBER CORPORATION",33,10621.28,"F",1,{"$f":"FETCHCOMMENT(E291)","v":"02-2J2204"},1,{"$f":"FETCHCOMMENT(G291)","v":"HIGHWAY SPECIALTY COMPANY, INC."},2]
["SHASTA PRECAST, INC.",-4142,368506.96,"F",5,{"$f":"FETCHCOMMENT(E292)","v":"02-1J75U4\n02-4H0704\n04-0K8004\n10-1L8704\n04-2K3604"},3,{"$f":"FETCHCOMMENT(G292)","v":"HAT CREEK CONSTRUCTION & MATERIALS, INC.\nGHILOTTI BROS INC\nGRANITE CONSTRUCTION COMPANY"},"1,2,4,10"]
["SPECS CIVIL SOLUTIONS ",-4142,97750.8,"F",1,{"$f":"FETCHCOMMENT(E293)","v":"09-366804"},1,{"$f":"FETCHCOMMENT(G293)","v":"PAPICH CONSTRUCTION COMPANY, INC."},9]
["SPRING RIVERS ECOLOGICAL",-4142,74400,"F",4,{"$f":"FETCHCOMMENT(E294)","v":"02-3H6904\n02-4H03U4\n02-1J75U4\n02-4H0704"},2,{"$f":"FETCHCOMMENT(G294)","v":"DIG IT CONSTRUCTION, INC.\nHAT CREEK CONSTRUCTION & MATERIALS, INC."},2]
["SUMMIT WEST ENVIRONMENTAL",-4142,33070,"F",1,{"$f":"FETCHCOMMENT(E295)","v":"01-0K8904"},1,{"$f":"FETCHCOMMENT(G295)","v":"GRANITE CONSTRUCTION COMPANY"},1]
["SUPER SEAL & STRIPE ",-4142,2221941.5,"F",7,{"$f":"FETCHCOMMENT(E296)","v":"05-1J7804\n05-1H6504\n05-1K4504\n05-1K5104\n05-1K6404\n09-374704\n04-0P9304"},5,{"$f":"FETCHCOMMENT(G296)","v":"CALPORTLAND CONSTRUCTION\nGRANITE CONSTRUCTION COMPANY\nCENTRAL COAST FINANCIAL GROUP, INC. DBA CCFG CONSTRUCTION\nPAPICH CONSTRUCTION COMPANY INC\nBUGLER CONSTRUCTION, INC."},"4,5,9"]
["SUPERIOR HYDROSEEDING",-4142,10212,"F",1,{"$f":"FETCHCOMMENT(E297)","v":"05-1N3404"},1,{"$f":"FETCHCOMMENT(G297)","v":"SOUZA ENGINEERING CONTRACTING, INC. DBA SOUZA CONSTRUCTION"},5]
["T & S DVBE",33,13490773.609999999,"F",13,{"$f":"FETCHCOMMENT(E298)","v":"03-4H8704\n02-3H6904\n02-4H0604\n02-4H03U4\n03-2J5904\n01-0H6404\n02-1J75U4\n02-4H0104\n02-4H0704\n10-1L2804\n04-4G7804\n01-0K8904\n01-0H6504"},6,{"$f":"FETCHCOMMENT(G298)","v":"O.C. JONES & SONS, INC.\nDIG IT CONSTRUCTION, INC.\nHAT CREEK CONSTRUCTION & MATERIALS, INC.\nSTUDEBAKER ELECTRIC, INC.\nGRANITE CONSTRUCTION COMPANY\nWAHLUND CONSTRUCTION, INC."},"1,2,3,4"]
["TALL TREE ENGINEERING",-4142,70840,"F",1,{"$f":"FETCHCOMMENT(E299)","v":"01-0H6404"},1,{"$f":"FETCHCOMMENT(G299)","v":"WYLATTI RESOURCE MANAGEMENT, INC."},1]
["TEK SERVICES",33,700478.01,"F",1,{"$f":"FETCHCOMMENT(E300)","v":"07-333604"},1,{"$f":"FETCHCOMMENT(G300)","v":"SULLY-MILLER CONTRACTING COMPANY"},7]
["TRI VALLEY WATER TRUCKS, INC.",33,2160280,"F",2,{"$f":"FETCHCOMMENT(E301)","v":"04-2Q6104\n04-0AA624"},1,{"$f":"FETCHCOMMENT(G301)","v":"GRANITE ROCK COMPANY"},4]
["TUNGSTEN ENGINEERING",43,4833634.5,"F",4,{"$f":"FETCHCOMMENT(E302)","v":"02-4H03U4\n02-1J75U4\n02-4H0704\n03-1H1404"},2,{"$f":"FETCHCOMMENT(G302)","v":"HAT CREEK CONSTRUCTION & MATERIALS, INC.\nMARTIN BROTHERS CONSTRUCTION\n"},"2,3"]
["TYRRELL RESOURCES",-4142,2338242.85,"F",13,{"$f":"FETCHCOMMENT(E303)","v":"02-4H0604\n01-0F7104\n02-0K6404\n02-4H03U4\n02-1J75U4\n03-3H8304\n06-487404\n10-1L2804\n01-0K8904\n04-2K3604\n10-1H7004\n10-1K8404\n03-0J5604"},8,{"$f":"FETCHCOMMENT(G303)","v":"HAT CREEK CONSTRUCTION & MATERIALS, INC.\nGHILOTTI CONSTRUCTION COMPANY, INC.\nMCCUEN CONSTRUCTION, INC.\nGRANITE CONSTRUCTION COMPANY\nO.C. JONES & SONS, INC.\nPACIFIC INFRASTRUCTURE CONSTRUCTION, LLC\nMOUNTAIN CASCADE INC\nMERCER-FRASER COMPANY"},"1,2,3,6,10"]
["WATER COMPONENTS & BUILDING ",33,48072.58,"F",2,{"$f":"FETCHCOMMENT(E304)","v":"04-0K8004\n04-2K3604"},1,{"$f":"FETCHCOMMENT(G304)","v":"GHILOTTI BROS INC"},4]
["WEST COAST WATER & TRUCKING",43,3145180,"F",4,{"$f":"FETCHCOMMENT(E305)","v":"03-4H8704\n03-0J01U4\n03-3H8304\n03-0J5604"},3,null,3]
[null,null,null,null,null,{"$f":"FETCHCOMMENT(E306)","v":""}]
[null,null,null,null,null,{"$f":"FETCHCOMMENT(E307)","v":""}]
[null,null,null,null,null,{"$f":"FETCHCOMMENT(E308)","v":""}]
[null,{"$f":"COUNTIF(B30:B308, \"33\")","v":46}]
[null,{"$f":"COUNTIF(B30:B308, \"43\")","v":47}]
[null,{"$f":"COUNTIF(B30:B308, \"-4142\")","v":160}]
["Prime Name",null,"# of Contracts","Contract #","Prime Name","# of Contracts","Contract #","Prime Name","# of Contracts","Contract #"]
["ACCU CONSTRUCTION, INC.",null,2,{"$f":"FETCHCOMMENT(C313)","v":"07-348404\n07-356504\n"},"GEORGE REED, INC.",2,{"$f":"FETCHCOMMENT(F313)","v":"10-1J8204\n10-1H7004"},"PETERSON-CHASE GENERAL ENGINEERING CONSTRUCTION, INC.",1,{"$f":"FETCHCOMMENT(I313)","v":"12-0R3134"}]
["ALL AMERICAN ASPHALT",null,1,{"$f":"FETCHCOMMENT(C314)","v":"08-1J4504"},"GHILOTTI BROS INC",3,{"$f":"FETCHCOMMENT(F314)","v":"04-0K8004\n04-0Q2004\n04-2K3604"},"POLO ENGINEERING, INC.",1,{"$f":"FETCHCOMMENT(I314)","v":"07-4P8504"}]
["AMERICA PACIFIC CONSTRUCTION, INC.",null,1,{"$f":"FETCHCOMMENT(C315)","v":"08-1P2804"},"GHILOTTI CONSTRUCTION COMPANY INC",1,{"$f":"FETCHCOMMENT(F315)","v":"01-0F7104"},"POWELL CONSTRUCTORS, INC.",2,{"$f":"FETCHCOMMENT(I315)","v":"12-0R3154\n07-346104"}]
["ARGONAUT CONSTRUCTORS",null,1,{"$f":"FETCHCOMMENT(C316)","v":"01-0H6004"},"GORDON N. BALL, INC.",3,{"$f":"FETCHCOMMENT(F316)","v":"04-4K3004\n04-2Q8004\n05-1G9504"},"PRECISION GRADE, INC.",1,{"$f":"FETCHCOMMENT(I316)","v":"05-1H6914"}]
["AUTOBAHN CONSTRUCTION, INC.",null,1,{"$f":"FETCHCOMMENT(C317)","v":"12-0S7004"},"GRANITE CONSTRUCTION COMPANY",10,{"$f":"FETCHCOMMENT(F317)","v":"06-0X2504\n05-1H6504\n05-1K6404\n06-487404\n08-1K6904\n12-0K91U4\n10-1L8704\n08-0G8504\n01-0K8904\n07-355204"},"PTM GENERAL ENGINEERING SERVICES, INC.",2,{"$f":"FETCHCOMMENT(I317)","v":"07-377604\n12-0U9204"}]
["BAKER ELECTRIC & RENEWABLES, LLC",null,1,{"$f":"FETCHCOMMENT(C318)","v":"12-0S8404"},"GRANITE ROCK COMPANY",2,{"$f":"FETCHCOMMENT(F318)","v":"04-2Q6104\n04-0AA624"},"QUIMU CONTRACTING, INC.",1,{"$f":"FETCHCOMMENT(I318)","v":"03-3J9104"}]
["BAY CITIES PAVING & GRADING, INC.",null,5,{"$f":"FETCHCOMMENT(C319)","v":"10-0Q2104\n04-2K7404\n04-2Q5504\n04-2Q6504\n04-2Q5204"},"GRIFFITH COMPANY",1,{"$f":"FETCHCOMMENT(F319)","v":"07-370404"},"R.J. NOBLE COMPANY",1,{"$f":"FETCHCOMMENT(I319)","v":"12-0R32U4"}]
["BEADOR CONSTRUCTION COMPANY, INC.",null,3,{"$f":"FETCHCOMMENT(C320)","v":"07-4X9704\n08-1K4004\n12-0R3114"},"HAT CREEK CONSTRUCTION & MATERIALS, INC.",5,{"$f":"FETCHCOMMENT(F320)","v":"02-4H0604\n02-4H03U4\n02-1J75U4\n02-4H0104\n02-4H0704"},"RASMUSSEN/VANGUARD",1,{"$f":"FETCHCOMMENT(I320)","v":"07-347904"}]
["BOSCO CONSTRUCTORS, INC.",null,1,{"$f":"FETCHCOMMENT(C321)","v":"07-348204"},"HAZARD CONSTRUCTION ENGR, LLC",3,{"$f":"FETCHCOMMENT(F321)","v":"11-430384\n11-056404\n11-430194"},"ROAD AND HIGHWAY BUILDERS LLC",1,{"$f":"FETCHCOMMENT(I321)","v":"09-379104"}]
["BUGLER CONSTRUCTION, INC.",null,1,{"$f":"FETCHCOMMENT(C322)","v":"04-0P9304"},"HIGHWAY SPECIALTY COMPANY",1,{"$f":"FETCHCOMMENT(F322)","v":"02-2J2204"},"SB GENERAL ENGINEERING INC",1,{"$f":"FETCHCOMMENT(I322)","v":"09-387704"}]
["C. A. RASMUSSEN, INC.",null,2,{"$f":"FETCHCOMMENT(C323)","v":"07-351704\n07-369704"},"INTERSTATE CIVIL CONSTRUCTION",2,{"$f":"FETCHCOMMENT(F323)","v":"08-1M7404\n08-1M0404"},"SECURITY PAVING COMPANY, INC.",3,{"$f":"FETCHCOMMENT(I323)","v":"12-0R57U4\n06-0W79U4\n07-346504"}]
["CALPORTLAND CONSTRUCTION",null,2,{"$f":"FETCHCOMMENT(C324)","v":"05-1J7804\n05-1K4504"},"JFL ELECTRIC, INC.",1,{"$f":"FETCHCOMMENT(F324)","v":"07-350324"},"SOUZA ENGINEERING CONTRACTING",1,{"$f":"FETCHCOMMENT(I324)","v":"05-1N3404"}]
["CENTRAL COAST FINANCIAL GROUP, INC. DBA CCFG CONSTRUCTION",null,1,{"$f":"FETCHCOMMENT(C325)","v":"05-1K5104"},"MARTIN BROTHERS CONSTRUCTION",1,{"$f":"FETCHCOMMENT(F325)","v":"03-1H1404"},"ST. FRANCIS ELECTRIC, LLC.",1,{"$f":"FETCHCOMMENT(I325)","v":"04-0P7604"}]
["CERTIFIED COATINGS COMPANY",null,1,{"$f":"FETCHCOMMENT(C326)","v":"07-354704\n"},"MCCUEN CONSTRUCTION INC",1,{"$f":"FETCHCOMMENT(F326)","v":"02-0K6404"},"STUDEBAKER ELECTRIC INC",1,{"$f":"FETCHCOMMENT(I326)","v":"03-2J5904\n"}]
["CHUMO CONSTRUCTION, INC.",null,3,{"$f":"FETCHCOMMENT(C327)","v":"12-0S1404\n07-346304\n12-0U9104"},"MERCER-FRASER COMPANY",4,{"$f":"FETCHCOMMENT(F327)","v":"03-0J01U4\n01-0J8904\n01-0J2104\n03-0J5604"},"SULLY-MILLER CONTRACTING COMPANY",4,{"$f":"FETCHCOMMENT(I327)","v":"07-333604\n08-1J3004\n08-1J2704\n08-1J7204"}]
["COLUMBIA ELECTRIC, INC.",null,1,{"$f":"FETCHCOMMENT(C328)","v":"04-1Q2004"},"MIKE BROWN ELECTRIC CO.",1,{"$f":"FETCHCOMMENT(F328)","v":"04-0K1004"},"TENNYSON ELECTRIC LLC",1,{"$f":"FETCHCOMMENT(I328)","v":"04-3Q8504"}]
["CROSSTOWN ELECTRICAL & DATA, INC.",null,3,{"$f":"FETCHCOMMENT(C329)","v":"07-350314\n07-350334\n04-1W0904"},"MOUNTAIN CASCADE, INC.",1,{"$f":"FETCHCOMMENT(F329)","v":"10-1K8404"},"TORO ENTERPRISES INC",2,{"$f":"FETCHCOMMENT(I329)","v":"07-332304\n07-346804"}]
["DIG IT CONSTRUCTION, INC.",null,1,{"$f":"FETCHCOMMENT(C330)","v":"02-3H6904"},"MYERS & SONS CONSTRUCTION INC",1,{"$f":"FETCHCOMMENT(F330)","v":"04-0P9204"},"TSI ENGINEERING INC",1,{"$f":"FETCHCOMMENT(I330)","v":"08-1J3304"}]
["FBD VANGUARD CONSTRUCTION, INC.",null,2,{"$f":"FETCHCOMMENT(C331)","v":"08-1J6104\n10-1N9004"},"O.C. JONES & SONS, INC.",6,{"$f":"FETCHCOMMENT(F331)","v":"03-4H8704\n04-0K6404\n04-3J2604\n10-1L2804\n04-4G7804\n04-0Q1304"},"WAHLUND CONSTRUCTION, INC.",1,{"$f":"FETCHCOMMENT(I331)","v":"01-0H6504"}]
["FLATIRON WEST INC",null,1,{"$f":"FETCHCOMMENT(C332)","v":"08-1J5404"},"ORTIZ ENTERPRISES INC",1,{"$f":"FETCHCOMMENT(F332)","v":"12-0K8704"},"WYLATTI RESOURCE MANAGEMENT, INC.",1,{"$f":"FETCHCOMMENT(I332)","v":"01-0H6404"}]
["G R SUNDBERG, INC.",null,2,{"$f":"FETCHCOMMENT(C333)","v":"01-0K4104\n01-0K9404"},"PACIFIC INFRASTRUCTURE CONSTRUCTION, LLC",1,{"$f":"FETCHCOMMENT(F333)","v":"03-3H8304"},"YAKAR",2,{"$f":"FETCHCOMMENT(I333)","v":"07-358404\n07-348504"}]
["GENUINE ENGINEERING, INC.",null,1,{"$f":"FETCHCOMMENT(C334)","v":"07-4V5404"},"PAPICH CONSTRUCTION COMPANY INC",5,{"$f":"FETCHCOMMENT(F334)","v":"05-1Q03U4\n09-374704\n05-1J8604\n06-0Y1704\n09-366804"},null,null,{"$f":"FETCHCOMMENT(I334)","v":""}]
[]
["To see names of prime contractors/contract numbers, place your cursor on comment tab (red triangle)."]
["Caltrans DBE Reports: http://www.dot.ca.gov/hq/bep/reports.htm"]